{"text_format":"1","workbook":"xlsx","n_sheets":7,"sheets":["Project Description","Property Information","Housing Income","Controls","NameRanges","Drop Down List Values","Extract Values"],"not_rendered":{"charts":0,"images":0,"macros":1,"external_links":1,"defined_names":834,"comments":3,"pivot_tables":0},"unopened":[],"bounds":{"document_bytes":16777216,"sheet_cells":100000,"rows_first":2000,"rows_last":500,"rows_between":2000,"halvings":0,"cell_chars":16384,"cell_head_chars":4096},"cells_cut":0,"cells_raw":0,"read":"whole","date_system":"1900"}

{"sheet":"Project Description","index":0,"n_rows":33,"n_cols":12,"rows_kept":33,"cut":false,"hidden":false,"merged":[[28,0,28,13],[31,1,31,6],[30,1,30,6],[0,0,1,13],[3,0,3,2],[3,3,3,5],[3,12,3,13],[3,7,3,11],[24,8,24,13],[25,1,25,6],[25,9,25,13],[26,1,26,6],[26,9,26,13],[22,8,22,13],[21,8,21,13],[10,12,10,13],[32,1,32,6],[23,1,23,6],[23,8,23,13],[24,1,24,6],[5,8,5,11],[22,1,22,6],[18,3,18,6],[20,0,20,13],[21,1,21,6],[10,3,10,4],[17,3,17,6],[14,3,14,7],[13,3,13,10],[12,3,12,10],[15,3,15,7],[16,3,16,6],[4,8,4,11],[4,12,4,13],[8,3,8,4],[9,3,9,4],[9,12,9,13],[7,0,7,13]]}
["PROJECT DESCRIPTION"]
[]
[]
["Application Date",null,null,null,null,null,null,"MINNESOTA HOUSING USE ONLY:"]
[null,null,null,null,null,null,null,"Version Date"]
[null,null,null,null,null,null,null,"Version"]
[]
["DEVELOPMENT LOCATION"]
["Property Number (D#):"]
["Project Number (M#):",null,null,null,null,"Only enter one Project Number."]
["HTC #"]
[]
["Development Name",null,null,null,null,null,null,null,null,null,null,"Year Built"]
["Primary Address"]
["City"]
["Zip Code"]
["County"]
["Latitude",null,null,null,null,null,null,"Enter the property's latitude."]
["Longitude",null,null,null,null,null,null,"Enter the property's longitude."]
[]
["ACTIVITY TYPE (Check all that apply)"]
[null,"Acquisition",null,null,null,null,null,null,"New Construction"]
[null,"Refinance",null,null,null,null,null,null,"Conversion/Adaptive Re-use"]
[null,"Rehabilitation",null,null,null,null,null,null,"Stabilization"]
[null,"Historic Pres/Renovation",null,null,null,null,null,null,"Scattered Site Development"]
[null,"Demolition",null,null,null,null,null,null,"Other:"]
[null,"Rental Subsidy",null,null,null,null,null,null,"Other:"]
[]
["DEMOGRAPHICS (Enter number of units for each applicable demographic)"]
["# Units"]
[null,"Senior"]
[null,"People with Disabilities"]
[null,"Permanent Supportive Housing"]

{"sheet":"Property Information","index":1,"n_rows":62,"n_cols":12,"rows_kept":62,"cut":false,"hidden":false,"merged":[[66,4,66,8],[6,0,7,0],[57,3,57,8],[58,3,58,8],[39,6,39,7],[40,6,40,7],[54,3,54,8],[55,3,55,8],[56,3,56,8],[61,4,61,8],[62,4,62,8],[63,4,63,8],[64,4,64,8],[65,4,65,8]]}
[null,"PROPERTY INFORMATION"]
["SITE DESCRIPTION"]
["Acres"]
["Total Site Area Sq. Footage",{"$f":"IF(ISBLANK(B3), 0, B3*43560)","v":0}]
["Density (units/acre)",{"$f":"IF(OR(ISBLANK(B3), B3=0), 0,E19/ B3)","v":0}]
[]
["Is  the project is sponsored by a tribal government, tribally designated housing entity or tribal corporate entity?"]
[]
[]
["Is the project located in a qualified census tract?"]
[]
["BUILDING DESCRIPTION"]
[]
["Housing Space","Type of Building","Number of Residential Buildings","Number of Stories","Number of Units","Gross Sq Feet"]
["New Construction"]
[]
[]
[]
["Totals",null,{"$f":"SUM(C15:C18)","v":0},{"$f":"SUM(D15:D18)","v":0},{"$f":"SUM(E15:E18)","v":0},{"$f":"SUM(F15:F18)","v":0}]
[]
["Parking","Type","Number of Parking Spaces","Number Parking Spaces / Unit","Gross Square Feet"]
["Covered Parking",null,null,{"$f":"IF(OR(PropertyInformationBuildingDescriptionNumberUnitsTotal=0, ISBLANK(PropertyInformationBuildingDescriptionNumberUnitsTotal), PropertyInformationCoveredParkingSpaces=0, ISBLANK(PropertyInformationCoveredParkingSpaces)), 0, PropertyInformationCoveredParkingSpaces/PropertyInformationBuildingDescriptionNumberUnitsTotal)","v":0}]
["Surface Parking",null,null,{"$f":"IF(OR(PropertyInformationBuildingDescriptionNumberUnitsTotal=0, ISBLANK(PropertyInformationBuildingDescriptionNumberUnitsTotal), PropertyInformationSurfaceParkingSpaces=0, ISBLANK(C23)), 0, PropertyInformationSurfaceParkingSpaces/PropertyInformationBuildingDescriptionNumberUnitsTotal)","v":0}]
["Totals",null,{"$f":"SUM(C22:C23)","v":0},{"$f":"SUM(D22:D23)","v":0},{"$f":"IF(ISBLANK(E22), 0, E22)","v":0}]
[]
["Non-Housing Space","Describe","Gross Sq Ft"]
["Administration/Programmatic"]
["Commercial"]
["Storage Lockers"]
["Community Space"]
["Swimming Pool"]
["Community Service Facility"]
["Office"]
["Commercial Kitchen or Food Service Space (for supportive or senior housing)"]
["Other"]
["Total Non-Housing gross square feet",null,{"$f":"SUM(C27:C35)","v":0}]
[]
["DEVELOPMENTS INVOLVING ACQUISITION"]
["Will the property be acquired from a related party?"]
["Has the property been acquired from a related party?",null,null,"If yes, date:",null,"Sale price:"]
["Has the property been acquired from an unrelated party in the last three years?",null,null,"If yes, date:",null,"Sale price:"]
[]
["Existing Indebtedness on the Property/Building"]
["Name of Lender(s) of Existing Loans, Subsidies and Grants (secured and unsecured)","Original Loan Amount","Interest Rate","Term (Yrs)","Unpaid Balance","Date of Unpaid Balance","Date of Maturity","Number of Restricted Units","Restricted to Special Popula-tions?","Loan Will be Paid Off in this Transaction?","Income Limits (%)","Rent Limits (%)"]
[]
[]
[]
[]
[]
[]
[]
["Total",{"$f":"SUM(B45:B51)","v":0},null,null,{"$f":"SUM(E45:E51)","v":0}]
[]
["Existing Federal Subsidies"]
["Federal Subsidy","# of Units","Exp. Date","Are the existing federally assisted units at risk of loss?"]
[]
[]
[]
[]
[]
["Existing State and Local Subsidies"]
["State or Local Subsidy","Subsidy Type","# of Units","Exp. Date","Describe if Other"]

{"sheet":"Housing Income","index":2,"n_rows":52,"n_cols":25,"rows_kept":52,"cut":false,"hidden":false,"merged":[[4,1,4,2],[0,1,1,23],[3,1,3,2],[9,1,9,2],[10,1,10,2],[7,1,7,2],[8,1,8,2],[5,1,5,2],[6,1,6,2],[13,2,13,6],[13,7,13,8],[11,1,11,2],[12,1,12,3],[16,9,17,10],[50,2,50,5],[40,1,40,2],[46,2,46,5],[47,2,47,5],[48,2,48,5],[49,2,49,5],[40,4,40,5],[24,11,24,13],[25,11,25,13],[26,11,26,13],[27,11,27,13],[18,11,18,13],[19,11,19,13],[20,11,20,13],[21,11,21,13],[22,11,22,13],[38,11,38,13],[17,11,17,13],[16,11,16,13],[13,9,13,12],[33,11,33,13],[34,11,34,13],[35,11,35,13],[36,11,36,13],[37,11,37,13],[28,11,28,13],[29,11,29,13],[30,11,30,13],[31,11,31,13],[32,11,32,13],[23,11,23,13],[18,9,18,10],[19,9,19,10],[20,9,20,10],[21,9,21,10],[22,9,22,10],[23,9,23,10],[24,9,24,10],[25,9,25,10],[26,9,26,10],[27,9,27,10],[28,9,28,10],[29,9,29,10],[30,9,30,10],[31,9,31,10],[32,9,32,10],[33,9,33,10],[34,9,34,10],[35,9,35,10],[36,9,36,10],[37,9,37,10],[38,9,38,10]]}
[null,"HOUSING INCOME"]
[]
[null,"TENANT PAID UTILITY ALLOWANCE"]
[null,"Utility",null,"Utility Type","SRO no Kitchen","SRO with Kitchen","0BR/Eff","1BR","2BR","3BR","4BR","5BR","6BR"]
[null,"Heating"]
[null,"Cooking"]
[null,"Water Heating"]
[null,"Electric"]
[null,"A/C"]
[null,"Water/Sewer"]
[null,"Service Fee"]
[null,"Other"]
[null,"Total Tenant Paid",null,null,{"$f":"SUM(E5:E12)","v":0},0,0,0,0,0,0,{"$f":"SUM(L5:L12)","v":0},{"$f":"SUM(M5:P12)","v":0}]
[null,"Source",null,null,null,null,null,"Effective Date"]
[]
[null,"UNIT / RENT GRID"]
[null,null,null,null,null,null,null,null,null,"Rent Limit",null,null,null,null,"Program Type"]
[null,"Unit Type","# of Bath-rooms","# of Units","Unit\nSq Ft","Monthly Contract Rent","Total Annual Contract Rent","Tenant Paid Utilities","Monthly Gross Rent",null,null,"Income Limit",null,null,"HTC","HOME","NHTF","HPH","PWD","HIB Senior","Rent Asst","Op Subs","Rooms Per Unit","Total Rooms","Source of Rental Assistance or Operating Subsidy"]
[null,null,null,null,null,null,{"$f":"IF(ISBLANK(D19),0,F19*D19*12)","v":0},{"$f":"IF(ISERROR(VLOOKUP(B19,Controls_TenantPaidUtilities, 2, FALSE)),0, VLOOKUP(B19,Controls_TenantPaidUtilities, 2, FALSE))","v":0},{"$f":"F19+H19","v":0},null,null,null,null,null,null,null,null,null,null,null,null,null,{"$f":"Controls_RentGridRoomsPerUnit1","v":""},{"$f":"IF(OR(ISBLANK(W19),ISBLANK(D19)), 0, W19*D19)","v":0}]
[null,null,null,null,null,null,0,0,0,null,null,null,null,null,null,null,null,null,null,null,null,null,{"$f":"Controls_RentGridRoomsPerUnit2","v":""},0]
[null,null,null,null,null,null,0,0,0,null,null,null,null,null,null,null,null,null,null,null,null,null,{"$f":"Controls_RentGridRoomsPerUnit3","v":""},0]
[null,null,null,null,null,null,0,0,0,null,null,null,null,null,null,null,null,null,null,null,null,null,{"$f":"Controls_RentGridRoomsPerUnit4","v":""},0]
[null,null,null,null,null,null,0,0,0,null,null,null,null,null,null,null,null,null,null,null,null,null,{"$f":"Controls_RentGridRoomsPerUnit5","v":""},0]
[null,null,null,null,null,null,0,0,0,null,null,null,null,null,null,null,null,null,null,null,null,null,{"$f":"Controls_RentGridRoomsPerUnit6","v":""},0]
[null,null,null,null,null,null,0,0,0,null,null,null,null,null,null,null,null,null,null,null,null,null,{"$f":"Controls_RentGridRoomsPerUnit7","v":""},0]
[null,null,null,null,null,null,0,0,0,null,null,null,null,null,null,null,null,null,null,null,null,null,{"$f":"Controls_RentGridRoomsPerUnit8","v":""},0]
[null,null,null,null,null,null,0,0,0,null,null,null,null,null,null,null,null,null,null,null,null,null,{"$f":"Controls_RentGridRoomsPerUnit9","v":""},0]
[null,null,null,null,null,null,0,0,0,null,null,null,null,null,null,null,null,null,null,null,null,null,{"$f":"Controls_RentGridRoomsPerUnit10","v":""},0]
[null,null,null,null,null,null,0,0,0,null,null,null,null,null,null,null,null,null,null,null,null,null,{"$f":"Controls_RentGridRoomsPerUnit11","v":""},0]
[null,null,null,null,null,null,0,0,0,null,null,null,null,null,null,null,null,null,null,null,null,null,{"$f":"Controls_RentGridRoomsPerUnit12","v":""},0]
[null,null,null,null,null,null,0,0,0,null,null,null,null,null,null,null,null,null,null,null,null,null,{"$f":"Controls_RentGridRoomsPerUnit13","v":""},0]
[null,null,null,null,null,null,0,0,0,null,null,null,null,null,null,null,null,null,null,null,null,null,{"$f":"Controls_RentGridRoomsPerUnit14","v":""},0]
[null,null,null,null,null,null,0,0,0,null,null,null,null,null,null,null,null,null,null,null,null,null,{"$f":"Controls_RentGridRoomsPerUnit15","v":""},0]
[null,null,null,null,null,null,0,0,0,null,null,null,null,null,null,null,null,null,null,null,null,null,{"$f":"Controls_RentGridRoomsPerUnit16","v":""},0]
[null,null,null,null,null,null,0,0,0,null,null,null,null,null,null,null,null,null,null,null,null,null,{"$f":"Controls_RentGridRoomsPerUnit17","v":""},0]
[null,null,null,null,null,null,0,0,0,null,null,null,null,null,null,null,null,null,null,null,null,null,{"$f":"Controls_RentGridRoomsPerUnit18","v":""},0]
[null,null,null,null,null,null,0,0,0,null,null,null,null,null,null,null,null,null,null,null,null,null,{"$f":"Controls_RentGridRoomsPerUnit19","v":""},0]
[null,null,null,null,null,null,0,0,0,null,null,null,null,null,null,null,null,null,null,null,null,null,{"$f":"Controls_RentGridRoomsPerUnit20","v":""},0]
[null,null,null,null,null,null,0,0,0,null,null,null,null,null,null,null,null,null,null,null,null,null,{"$f":"Controls_RentGridRoomsPerUnit21","v":""},0]
[]
[null,"Total Units",null,{"$f":"SUM(HousingIncomeRentGridNbrUnitsRange)","v":0},"Rental Hsg Potential",null,{"$f":"SUM(HousingIncomeRentGridTotalAnnualContractRentRange)","v":0},null,null,null,null,null,null,null,null,null,null,null,null,null,null,null,null,"Total Rooms",{"$f":"ROUNDUP(SUM(X19:X39),0)","v":0}]
[null,null,"Total # Bathrooms in Units"]
[]
[null,null,"Average Income Test",{"$f":"IFERROR((Controls_HousingIncomeLIHTCTotalIncomeAverage/Controls_HousingIncomeLIHTCTotalUnitsIncomeAverage)/100,0)","v":0},"NOTE: Average Income is based on number of HTC units with MTSP Income Limit"]
[]
[null,"Rent Limit/Income Limit Key:"]
[null,"Option","Equals"]
[null,"30/30 MM","30% of 30% Metro Median"]
[null,"ALW","Affordable to the Local Workforce"]
[null,"80>S/AMI","80% of the greater of SMI or AMI"]
[null,"100>S/AMI","100% of the greater of SMI or AMI"]
[null,""]

{"sheet":"Controls","index":3,"n_rows":51,"n_cols":26,"rows_kept":51,"cut":false,"hidden":true,"merged":[[37,0,38,1],[0,16,0,25],[0,5,0,12],[0,0,0,4],[26,3,26,4],[26,0,26,1],[26,6,26,8],[1,17,1,25]]}
["Unit Information from Rent Grid",null,null,null,null,"Units per Unit Type",null,null,null,null,null,null,null,null,null,null,"HOUSING INCOME"]
["Unit Type","# of Bath-rooms","# of Units","Approx Sq Ft","Monthly Contract Rent","OBR/Eff","SRO no Kitchen","SRO with Kitchen","1BR","2BR","3BR","4BR+","Rooms per Unit",null,null,null,"Market Rent Limit","Checkbox values for Housing Income Rent Grid"]
[{"$f":"INDEX(HousingIncomeUnitRentGridRange,1,1)","v":0},{"$f":"INDEX(HousingIncomeUnitRentGridRange,1,2)","v":0},{"$f":"INDEX(HousingIncomeUnitRentGridRange,1,3)","v":0},{"$f":"INDEX(HousingIncomeUnitRentGridRange,1,4)","v":0},{"$f":"INDEX(HousingIncomeUnitRentGridRange,1,5)","v":0},{"$f":"IF($A3=\"OBR/Eff\",$C3,0)","v":0},{"$f":"IF($A3=\"SRO no Kitchen\",$C3,0)","v":0},{"$f":"IF($A3=\"SRO with Kitchen\",$C3,0)","v":0},{"$f":"IF($A3=\"1BR\",$C3,0)","v":0},{"$f":"IF($A3=\"2BR\",$C3,0)","v":0},{"$f":"IF($A3=\"3BR\",$C3,0)","v":0},{"$f":"IF(OR($A3=\"4BR\",$A3=\"5BR\",$A3=\"6BR\",$A3=\"Bed\"),$C3,0)","v":0},{"$f":"IF(NOT(ISNA(VLOOKUP(A3,Controls_UnitTypeRooms,2,FALSE))),VLOOKUP(A3,Controls_UnitTypeRooms,2,FALSE),\"\")","v":""},null,null,null,"Rent Limit = Market","LIHTC","HOME","NHTF","LTH","PWD","HIB Senior","Op Subs","Rent Asst","Common Space"]
[{"$f":"INDEX(HousingIncomeUnitRentGridRange,2,1)","v":0},{"$f":"INDEX(HousingIncomeUnitRentGridRange,2,2)","v":0},{"$f":"INDEX(HousingIncomeUnitRentGridRange,2,3)","v":0},{"$f":"INDEX(HousingIncomeUnitRentGridRange,2,4)","v":0},{"$f":"INDEX(HousingIncomeUnitRentGridRange,2,5)","v":0},0,0,0,0,0,0,0,"",null,null,null,{"$f":"IF(HousingIncomeRentGridRentLimit1=\"Market\", TRUE,FALSE)","v":false},true,false,false,false,false,false,false,false,false]
[{"$f":"INDEX(HousingIncomeUnitRentGridRange,3,1)","v":0},{"$f":"INDEX(HousingIncomeUnitRentGridRange,3,2)","v":0},{"$f":"INDEX(HousingIncomeUnitRentGridRange,3,3)","v":0},{"$f":"INDEX(HousingIncomeUnitRentGridRange,3,4)","v":0},{"$f":"INDEX(HousingIncomeUnitRentGridRange,3,5)","v":0},0,0,0,0,0,0,0,"",null,null,null,{"$f":"IF(HousingIncomeRentGridRentLimit2=\"Market\", TRUE,FALSE)","v":false},false,false,false,false,false,false,false,false,false]
[{"$f":"INDEX(HousingIncomeUnitRentGridRange,4,1)","v":0},{"$f":"INDEX(HousingIncomeUnitRentGridRange,4,2)","v":0},{"$f":"INDEX(HousingIncomeUnitRentGridRange,4,3)","v":0},{"$f":"INDEX(HousingIncomeUnitRentGridRange,4,4)","v":0},{"$f":"INDEX(HousingIncomeUnitRentGridRange,4,5)","v":0},0,0,0,0,0,0,0,"",null,null,null,{"$f":"IF(HousingIncomeRentGridRentLimit3=\"Market\", TRUE,FALSE)","v":false},false,false,false,false,false,false,false,false,false]
[{"$f":"INDEX(HousingIncomeUnitRentGridRange,5,1)","v":0},{"$f":"INDEX(HousingIncomeUnitRentGridRange,5,2)","v":0},{"$f":"INDEX(HousingIncomeUnitRentGridRange,5,3)","v":0},{"$f":"INDEX(HousingIncomeUnitRentGridRange,5,4)","v":0},{"$f":"INDEX(HousingIncomeUnitRentGridRange,5,5)","v":0},0,0,0,0,0,0,0,"",null,null,null,{"$f":"IF(HousingIncomeRentGridRentLimit4=\"Market\", TRUE,FALSE)","v":false},false,false,false,false,false,false,false,false,false]
[{"$f":"INDEX(HousingIncomeUnitRentGridRange,6,1)","v":0},{"$f":"INDEX(HousingIncomeUnitRentGridRange,6,2)","v":0},{"$f":"INDEX(HousingIncomeUnitRentGridRange,6,3)","v":0},{"$f":"INDEX(HousingIncomeUnitRentGridRange,6,4)","v":0},{"$f":"INDEX(HousingIncomeUnitRentGridRange,6,5)","v":0},0,0,0,0,0,0,0,"",null,null,null,{"$f":"IF(HousingIncomeRentGridRentLimit5=\"Market\", TRUE,FALSE)","v":false},false,false,false,false,false,false,false,false,false]
[{"$f":"INDEX(HousingIncomeUnitRentGridRange,7,1)","v":0},{"$f":"INDEX(HousingIncomeUnitRentGridRange,7,2)","v":0},{"$f":"INDEX(HousingIncomeUnitRentGridRange,7,3)","v":0},{"$f":"INDEX(HousingIncomeUnitRentGridRange,7,4)","v":0},{"$f":"INDEX(HousingIncomeUnitRentGridRange,7,5)","v":0},0,0,0,0,0,0,0,"",null,null,null,{"$f":"IF(HousingIncomeRentGridRentLimit6=\"Market\", TRUE,FALSE)","v":false},false,false,false,false,false,false,false,false,false]
[{"$f":"INDEX(HousingIncomeUnitRentGridRange,8,1)","v":0},{"$f":"INDEX(HousingIncomeUnitRentGridRange,8,2)","v":0},{"$f":"INDEX(HousingIncomeUnitRentGridRange,8,3)","v":0},{"$f":"INDEX(HousingIncomeUnitRentGridRange,8,4)","v":0},{"$f":"INDEX(HousingIncomeUnitRentGridRange,8,5)","v":0},0,0,0,0,0,0,0,"",null,null,null,{"$f":"IF(HousingIncomeRentGridRentLimit7=\"Market\", TRUE,FALSE)","v":false},false,false,false,false,false,false,false,false,false]
[{"$f":"INDEX(HousingIncomeUnitRentGridRange,9,1)","v":0},{"$f":"INDEX(HousingIncomeUnitRentGridRange,9,2)","v":0},{"$f":"INDEX(HousingIncomeUnitRentGridRange,9,3)","v":0},{"$f":"INDEX(HousingIncomeUnitRentGridRange,9,4)","v":0},{"$f":"INDEX(HousingIncomeUnitRentGridRange,9,5)","v":0},0,0,0,0,0,0,0,"",null,null,null,{"$f":"IF(HousingIncomeRentGridRentLimit8=\"Market\", TRUE,FALSE)","v":false},false,false,false,false,false,false,false,false,false]
[{"$f":"INDEX(HousingIncomeUnitRentGridRange,10,1)","v":0},{"$f":"INDEX(HousingIncomeUnitRentGridRange,10,2)","v":0},{"$f":"INDEX(HousingIncomeUnitRentGridRange,10,3)","v":0},{"$f":"INDEX(HousingIncomeUnitRentGridRange,10,4)","v":0},{"$f":"INDEX(HousingIncomeUnitRentGridRange,10,5)","v":0},0,0,0,0,0,0,0,"",null,null,null,{"$f":"IF(HousingIncomeRentGridRentLimit9=\"Market\", TRUE,FALSE)","v":false},false,false,false,false,false,false,false,false,false]
[{"$f":"INDEX(HousingIncomeUnitRentGridRange,11,1)","v":0},{"$f":"INDEX(HousingIncomeUnitRentGridRange,11,2)","v":0},{"$f":"INDEX(HousingIncomeUnitRentGridRange,11,3)","v":0},{"$f":"INDEX(HousingIncomeUnitRentGridRange,11,4)","v":0},{"$f":"INDEX(HousingIncomeUnitRentGridRange,11,5)","v":0},0,0,0,0,0,0,0,"",null,null,null,{"$f":"IF(HousingIncomeRentGridRentLimit10=\"Market\", TRUE,FALSE)","v":false},false,false,false,false,false,false,false,false,false]
[{"$f":"INDEX(HousingIncomeUnitRentGridRange,12,1)","v":0},{"$f":"INDEX(HousingIncomeUnitRentGridRange,12,2)","v":0},{"$f":"INDEX(HousingIncomeUnitRentGridRange,12,3)","v":0},{"$f":"INDEX(HousingIncomeUnitRentGridRange,12,4)","v":0},{"$f":"INDEX(HousingIncomeUnitRentGridRange,12,5)","v":0},0,0,0,0,0,0,0,"",null,null,null,{"$f":"IF(HousingIncomeRentGridRentLimit11=\"Market\", TRUE,FALSE)","v":false},false,false,false,false,false,false,false,false,false]
[{"$f":"INDEX(HousingIncomeUnitRentGridRange,13,1)","v":0},{"$f":"INDEX(HousingIncomeUnitRentGridRange,13,2)","v":0},{"$f":"INDEX(HousingIncomeUnitRentGridRange,13,3)","v":0},{"$f":"INDEX(HousingIncomeUnitRentGridRange,13,4)","v":0},{"$f":"INDEX(HousingIncomeUnitRentGridRange,13,5)","v":0},0,0,0,0,0,0,0,"",null,null,null,{"$f":"IF(HousingIncomeRentGridRentLimit12=\"Market\", TRUE,FALSE)","v":false},false,false,false,false,false,false,false,false,false]
[{"$f":"INDEX(HousingIncomeUnitRentGridRange,14,1)","v":0},{"$f":"INDEX(HousingIncomeUnitRentGridRange,14,2)","v":0},{"$f":"INDEX(HousingIncomeUnitRentGridRange,14,3)","v":0},{"$f":"INDEX(HousingIncomeUnitRentGridRange,14,4)","v":0},{"$f":"INDEX(HousingIncomeUnitRentGridRange,14,5)","v":0},0,0,0,0,0,0,0,"",null,null,null,{"$f":"IF(HousingIncomeRentGridRentLimit13=\"Market\", TRUE,FALSE)","v":false},false,false,false,false,false,false,false,false,false]
[{"$f":"INDEX(HousingIncomeUnitRentGridRange,15,1)","v":0},{"$f":"INDEX(HousingIncomeUnitRentGridRange,15,2)","v":0},{"$f":"INDEX(HousingIncomeUnitRentGridRange,15,3)","v":0},{"$f":"INDEX(HousingIncomeUnitRentGridRange,15,4)","v":0},{"$f":"INDEX(HousingIncomeUnitRentGridRange,15,5)","v":0},0,0,0,0,0,0,0,"",null,null,null,{"$f":"IF(HousingIncomeRentGridRentLimit14=\"Market\", TRUE,FALSE)","v":false},false,false,false,false,false,false,false,false,false]
[{"$f":"INDEX(HousingIncomeUnitRentGridRange,16,1)","v":0},{"$f":"INDEX(HousingIncomeUnitRentGridRange,16,2)","v":0},{"$f":"INDEX(HousingIncomeUnitRentGridRange,16,3)","v":0},{"$f":"INDEX(HousingIncomeUnitRentGridRange,16,4)","v":0},{"$f":"INDEX(HousingIncomeUnitRentGridRange,16,5)","v":0},0,0,0,0,0,0,0,"",null,null,null,{"$f":"IF(HousingIncomeRentGridRentLimit15=\"Market\", TRUE,FALSE)","v":false},false,false,false,false,false,false,false,false,false]
[{"$f":"INDEX(HousingIncomeUnitRentGridRange,17,1)","v":0},{"$f":"INDEX(HousingIncomeUnitRentGridRange,17,2)","v":0},{"$f":"INDEX(HousingIncomeUnitRentGridRange,17,3)","v":0},{"$f":"INDEX(HousingIncomeUnitRentGridRange,17,4)","v":0},{"$f":"INDEX(HousingIncomeUnitRentGridRange,17,5)","v":0},0,0,0,0,0,0,0,"",null,null,null,{"$f":"IF(HousingIncomeRentGridRentLimit16=\"Market\", TRUE,FALSE)","v":false},false,false,false,false,false,false,false,false,false]
[{"$f":"INDEX(HousingIncomeUnitRentGridRange,18,1)","v":0},{"$f":"INDEX(HousingIncomeUnitRentGridRange,18,2)","v":0},{"$f":"INDEX(HousingIncomeUnitRentGridRange,18,3)","v":0},{"$f":"INDEX(HousingIncomeUnitRentGridRange,18,4)","v":0},{"$f":"INDEX(HousingIncomeUnitRentGridRange,18,5)","v":0},0,0,0,0,0,0,0,"",null,null,null,{"$f":"IF(HousingIncomeRentGridRentLimit17=\"Market\", TRUE,FALSE)","v":false},false,false,false,false,false,false,false,false,false]
[{"$f":"INDEX(HousingIncomeUnitRentGridRange,19,1)","v":0},{"$f":"INDEX(HousingIncomeUnitRentGridRange,19,2)","v":0},{"$f":"INDEX(HousingIncomeUnitRentGridRange,19,3)","v":0},{"$f":"INDEX(HousingIncomeUnitRentGridRange,19,4)","v":0},{"$f":"INDEX(HousingIncomeUnitRentGridRange,19,5)","v":0},0,0,0,0,0,0,0,"",null,null,null,{"$f":"IF(HousingIncomeRentGridRentLimit18=\"Market\", TRUE,FALSE)","v":false},false,false,false,false,false,false,false,false,false]
[{"$f":"INDEX(HousingIncomeUnitRentGridRange,20,1)","v":0},{"$f":"INDEX(HousingIncomeUnitRentGridRange,20,2)","v":0},{"$f":"INDEX(HousingIncomeUnitRentGridRange,20,3)","v":0},{"$f":"INDEX(HousingIncomeUnitRentGridRange,20,4)","v":0},{"$f":"INDEX(HousingIncomeUnitRentGridRange,20,5)","v":0},0,0,0,0,0,0,0,"",null,null,null,{"$f":"IF(HousingIncomeRentGridRentLimit19=\"Market\", TRUE,FALSE)","v":false},false,false,false,false,false,false,false,false,false]
[{"$f":"INDEX(HousingIncomeUnitRentGridRange,21,1)","v":0},{"$f":"INDEX(HousingIncomeUnitRentGridRange,21,2)","v":0},{"$f":"INDEX(HousingIncomeUnitRentGridRange,21,3)","v":0},{"$f":"INDEX(HousingIncomeUnitRentGridRange,21,4)","v":0},{"$f":"INDEX(HousingIncomeUnitRentGridRange,21,5)","v":0},0,0,0,0,0,0,0,"",null,null,null,{"$f":"IF(HousingIncomeRentGridRentLimit20=\"Market\", TRUE,FALSE)","v":false},false,false,false,false,false,false,false,false,false]
[null,null,null,null,null,null,null,null,null,null,null,null,null,null,null,null,{"$f":"IF(HousingIncomeRentGridRentLimit21=\"Market\", TRUE,FALSE)","v":false},false,false,false,false,false,false,false,false,false]
[null,null,null,null,null,null,null,null,null,null,null,null,null,null,null,null,{"$f":"COUNTIF(Q4:Q24, TRUE)","v":0},{"$f":"COUNTIF(R4:R24, TRUE)","v":1},0,0,0,0,0,0,0,0]
[]
["Rooms Per Unit VLookup",null,null,"Housing Income Tenant Paid Utilities VLookup",null,null,"Income Average Vlookup",null,null,null,null,null,null,null,null,null,"LIHTC # of Units","LIHTC x Income limit","Total LIHTC Income Avg Units"]
["0BR/EFF",2.5,null,"SRO no Kitchen",{"$f":"HousingIncomeTenantPaidUtilityTotal1","v":0},null,"100%",0,false,null,null,null,null,null,null,null,{"$f":"IF(Controls_HousingIncomeRentGridLIHTCCheckboxValue1=TRUE,HousingIncomeRentGridNbrUnits1,0)","v":0},{"$f":"IFERROR((VLOOKUP(HousingIncomeRentGridIncomeLimit1,Controls_IncomeAverageLookup,2,FALSE)*Q28),0)","v":0},{"$f":"IFERROR(IF(VLOOKUP(HousingIncomeRentGridIncomeLimit1,Controls_IncomeAverageLookup,3,TRUE)=TRUE, Q28,\"\"),\"\")","v":""}]
["1BR",3.5,null,"SRO with Kitchen",{"$f":"HousingIncomeTenantPaidUtilityTotal2","v":0},null,"20% MTSP",20,true,null,null,null,null,null,null,null,0,{"$f":"IFERROR((VLOOKUP(HousingIncomeRentGridIncomeLimit2,Controls_IncomeAverageLookup,2,FALSE)*Q29),0)","v":0},{"$f":"IFERROR(IF(VLOOKUP(HousingIncomeRentGridIncomeLimit2,Controls_IncomeAverageLookup,3,TRUE)=TRUE, Q29,\"\"),\"\")","v":""}]
["2BR",4.5,null,"0BR/Eff",{"$f":"HousingIncomeTenantPaidUtilityTotal3","v":0},null,"30% MTSP",30,true,null,null,null,null,null,null,null,0,{"$f":"IFERROR((VLOOKUP(HousingIncomeRentGridIncomeLimit3,Controls_IncomeAverageLookup,2,FALSE)*Q30),0)","v":0},{"$f":"IFERROR(IF(VLOOKUP(HousingIncomeRentGridIncomeLimit3,Controls_IncomeAverageLookup,3,TRUE)=TRUE, Q30,\"\"),\"\")","v":""}]
["3BR",6,null,"1BR",{"$f":"HousingIncomeTenantPaidUtilityTotal4","v":0},null,"30/30 MM",0,false,null,null,null,null,null,null,null,0,{"$f":"IFERROR((VLOOKUP(HousingIncomeRentGridIncomeLimit4,Controls_IncomeAverageLookup,2,FALSE)*Q31),0)","v":0},{"$f":"IFERROR(IF(VLOOKUP(HousingIncomeRentGridIncomeLimit4,Controls_IncomeAverageLookup,3,TRUE)=TRUE, Q31,\"\"),\"\")","v":""}]
["4BR",7,null,"2BR",{"$f":"HousingIncomeTenantPaidUtilityTotal5","v":0},null,"40% MTSP",40,true,null,null,null,null,null,null,null,0,{"$f":"IFERROR((VLOOKUP(HousingIncomeRentGridIncomeLimit5,Controls_IncomeAverageLookup,2,FALSE)*Q32),0)","v":0},{"$f":"IFERROR(IF(VLOOKUP(HousingIncomeRentGridIncomeLimit5,Controls_IncomeAverageLookup,3,TRUE)=TRUE, Q32,\"\"),\"\")","v":""}]
["5BR",8.5,null,"3BR",{"$f":"HousingIncomeTenantPaidUtilityTotal6","v":0},null,"50% MTSP",50,true,null,null,null,null,null,null,null,0,{"$f":"IFERROR((VLOOKUP(HousingIncomeRentGridIncomeLimit6,Controls_IncomeAverageLookup,2,FALSE)*Q33),0)","v":0},{"$f":"IFERROR(IF(VLOOKUP(HousingIncomeRentGridIncomeLimit6,Controls_IncomeAverageLookup,3,TRUE)=TRUE, Q33,\"\"),\"\")","v":""}]
["6BR",9.5,null,"4BR",{"$f":"HousingIncomeTenantPaidUtilityTotal7","v":0},null,"60% MTSP",60,true,null,null,null,null,null,null,null,0,{"$f":"IFERROR((VLOOKUP(HousingIncomeRentGridIncomeLimit7,Controls_IncomeAverageLookup,2,FALSE)*Q34),0)","v":0},{"$f":"IFERROR(IF(VLOOKUP(HousingIncomeRentGridIncomeLimit7,Controls_IncomeAverageLookup,3,TRUE)=TRUE, Q34,\"\"),\"\")","v":""}]
["SRO no Kitchen",2.5,null,"5BR",{"$f":"HousingIncomeTenantPaidUtilityTotal8","v":0},null,"70% MTSP",70,true,null,null,null,null,null,null,null,0,{"$f":"IFERROR((VLOOKUP(HousingIncomeRentGridIncomeLimit8,Controls_IncomeAverageLookup,2,FALSE)*Q35),0)","v":0},{"$f":"IFERROR(IF(VLOOKUP(HousingIncomeRentGridIncomeLimit8,Controls_IncomeAverageLookup,3,TRUE)=TRUE, Q35,\"\"),\"\")","v":""}]
["SRO with Kitchen",2.5,null,"6BR",{"$f":"HousingIncomeTenantPaidUtilityTotal9","v":0},null,"80% MTSP",80,true,null,null,null,null,null,null,null,0,{"$f":"IFERROR((VLOOKUP(HousingIncomeRentGridIncomeLimit9,Controls_IncomeAverageLookup,2,FALSE)*Q36),0)","v":0},{"$f":"IFERROR(IF(VLOOKUP(HousingIncomeRentGridIncomeLimit9,Controls_IncomeAverageLookup,3,TRUE)=TRUE, Q36,\"\"),\"\")","v":""}]
[null,null,null,null,null,null,"80>S/AMI",0,false,null,null,null,null,null,null,null,0,{"$f":"IFERROR((VLOOKUP(HousingIncomeRentGridIncomeLimit10,Controls_IncomeAverageLookup,2,FALSE)*Q37),0)","v":0},{"$f":"IFERROR(IF(VLOOKUP(HousingIncomeRentGridIncomeLimit10,Controls_IncomeAverageLookup,3,TRUE)=TRUE, Q37,\"\"),\"\")","v":""}]
["Property Information Activity Type",null,null,null,null,null,"None",0,false,null,null,null,null,null,null,null,0,{"$f":"IFERROR((VLOOKUP(HousingIncomeRentGridIncomeLimit11,Controls_IncomeAverageLookup,2,FALSE)*Q38),0)","v":0},{"$f":"IFERROR(IF(VLOOKUP(HousingIncomeRentGridIncomeLimit11,Controls_IncomeAverageLookup,3,TRUE)=TRUE, Q38,\"\"),\"\")","v":""}]
[null,null,null,null,null,null,null,null,null,null,null,null,null,null,null,null,0,{"$f":"IFERROR((VLOOKUP(HousingIncomeRentGridIncomeLimit12,Controls_IncomeAverageLookup,2,FALSE)*Q39),0)","v":0},{"$f":"IFERROR(IF(VLOOKUP(HousingIncomeRentGridIncomeLimit12,Controls_IncomeAverageLookup,3,TRUE)=TRUE, Q39,\"\"),\"\")","v":""}]
["Acquisition",false,null,null,null,null,null,null,null,null,null,null,null,null,null,null,0,{"$f":"IFERROR((VLOOKUP(HousingIncomeRentGridIncomeLimit13,Controls_IncomeAverageLookup,2,FALSE)*Q40),0)","v":0},{"$f":"IFERROR(IF(VLOOKUP(HousingIncomeRentGridIncomeLimit13,Controls_IncomeAverageLookup,3,TRUE)=TRUE, Q40,\"\"),\"\")","v":""}]
["Refinance",false,null,null,null,null,null,null,null,null,null,null,null,null,null,null,0,{"$f":"IFERROR((VLOOKUP(HousingIncomeRentGridIncomeLimit14,Controls_IncomeAverageLookup,2,FALSE)*Q41),0)","v":0},{"$f":"IFERROR(IF(VLOOKUP(HousingIncomeRentGridIncomeLimit14,Controls_IncomeAverageLookup,3,TRUE)=TRUE, Q41,\"\"),\"\")","v":""}]
["Rehabilitation",false,null,null,null,null,null,null,null,null,null,null,null,null,null,null,0,{"$f":"IFERROR((VLOOKUP(HousingIncomeRentGridIncomeLimit15,Controls_IncomeAverageLookup,2,FALSE)*Q42),0)","v":0},{"$f":"IFERROR(IF(VLOOKUP(HousingIncomeRentGridIncomeLimit15,Controls_IncomeAverageLookup,3,TRUE)=TRUE, Q42,\"\"),\"\")","v":""}]
["Historic Pres/Renovation",false,null,null,null,null,null,null,null,null,null,null,null,null,null,null,0,{"$f":"IFERROR((VLOOKUP(HousingIncomeRentGridIncomeLimit16,Controls_IncomeAverageLookup,2,FALSE)*Q43),0)","v":0},{"$f":"IFERROR(IF(VLOOKUP(HousingIncomeRentGridIncomeLimit16,Controls_IncomeAverageLookup,3,TRUE)=TRUE, Q43,\"\"),\"\")","v":""}]
["Demolition",false,null,null,null,null,null,null,null,null,null,null,null,null,null,null,0,{"$f":"IFERROR((VLOOKUP(HousingIncomeRentGridIncomeLimit17,Controls_IncomeAverageLookup,2,FALSE)*Q44),0)","v":0},{"$f":"IFERROR(IF(VLOOKUP(HousingIncomeRentGridIncomeLimit17,Controls_IncomeAverageLookup,3,TRUE)=TRUE, Q44,\"\"),\"\")","v":""}]
["Rental Subsidy",false,null,null,null,null,null,null,null,null,null,null,null,null,null,null,0,{"$f":"IFERROR((VLOOKUP(HousingIncomeRentGridIncomeLimit18,Controls_IncomeAverageLookup,2,FALSE)*Q45),0)","v":0},{"$f":"IFERROR(IF(VLOOKUP(HousingIncomeRentGridIncomeLimit18,Controls_IncomeAverageLookup,3,TRUE)=TRUE, Q45,\"\"),\"\")","v":""}]
["New Construction",false,null,null,null,null,null,null,null,null,null,null,null,null,null,null,0,{"$f":"IFERROR((VLOOKUP(HousingIncomeRentGridIncomeLimit19,Controls_IncomeAverageLookup,2,FALSE)*Q46),0)","v":0},{"$f":"IFERROR(IF(VLOOKUP(HousingIncomeRentGridIncomeLimit19,Controls_IncomeAverageLookup,3,TRUE)=TRUE, Q46,\"\"),\"\")","v":""}]
["Conversion/Adaptive Re-use",false,null,null,null,null,null,null,null,null,null,null,null,null,null,null,0,{"$f":"IFERROR((VLOOKUP(HousingIncomeRentGridIncomeLimit20,Controls_IncomeAverageLookup,2,FALSE)*Q47),0)","v":0},{"$f":"IFERROR(IF(VLOOKUP(HousingIncomeRentGridIncomeLimit20,Controls_IncomeAverageLookup,3,TRUE)=TRUE, Q47,\"\"),\"\")","v":""}]
["Stabilization",false,null,null,null,null,null,null,null,null,null,null,null,null,null,null,0,{"$f":"IFERROR((VLOOKUP(HousingIncomeRentGridIncomeLimit21,Controls_IncomeAverageLookup,2,FALSE)*Q48),0)","v":0},{"$f":"IFERROR(IF(VLOOKUP(HousingIncomeRentGridIncomeLimit21,Controls_IncomeAverageLookup,3,TRUE)=TRUE, Q48,\"\"),\"\")","v":""}]
["Scattered Site Development",false,null,null,null,null,null,null,null,null,null,null,null,null,null,null,{"$f":"SUM(Q28:Q48)","v":0},{"$f":"SUM(R28:R48)","v":0},{"$f":"SUM(S28:S48)","v":0}]
["Other",false]
["Other",false]

{"sheet":"NameRanges","index":4,"n_rows":756,"n_cols":4,"rows_kept":756,"cut":false,"hidden":true,"merged":[]}
["Worksheet Address","Named Range","Scope","Worksheet Address"]
["='Property Information'!R41C9","ckClrControls_PropertyInformationDevelopmentAcquisitionHasBeenAcquiredNoCheckboxValue","2021 RFP Workbook(1).xlsm","$I$41"]
["='Property Information'!R41C8","ckClrControls_PropertyInformationDevelopmentAcquisitionHasBeenAcquiredYesCheckboxValue","2021 RFP Workbook(1).xlsm","$H$41"]
["='Property Information'!R42C9","ckClrControls_PropertyInformationDevelopmentAcquisitionLast3YearsNoCheckboxValue","2021 RFP Workbook(1).xlsm","$I$42"]
["='Property Information'!R42C8","ckClrControls_PropertyInformationDevelopmentAcquisitionLast3YearsYesCheckboxValue","2021 RFP Workbook(1).xlsm","$H$42"]
["='Property Information'!R40C9","ckClrControls_PropertyInformationDevelopmentAcquisitionWillBeAcquiredNoCheckboxValue","2021 RFP Workbook(1).xlsm","$I$40"]
["='Property Information'!R40C8","ckClrControls_PropertyInformationDevelopmentAcquisitionWillBeAcquiredYesCheckboxValue","2021 RFP Workbook(1).xlsm","$H$40"]
["='Housing Income'!R1C1:R53C24","Housing Income'!Print_Area","Housing Income","$A$1:$X$53"]
["='Housing Income'!R14C10","HousingIcomeTenantPaidUtilityAllowanceEffectiveDate","2021 RFP Workbook(1).xlsm","$J$14"]
["='Housing Income'!R44C4","HousingIncomeIncomeAverage","2021 RFP Workbook(1).xlsm","$D$44"]
["='Housing Income'!R41C7","HousingIncomeRentalHousingPotential","2021 RFP Workbook(1).xlsm","$G$41"]
["='Housing Income'!R19C7","HousingIncomeRentGridAnnualContractRent1","2021 RFP Workbook(1).xlsm","$G$19"]
["='Housing Income'!R28C7","HousingIncomeRentGridAnnualContractRent10","2021 RFP Workbook(1).xlsm","$G$28"]
["='Housing Income'!R29C7","HousingIncomeRentGridAnnualContractRent11","2021 RFP Workbook(1).xlsm","$G$29"]
["='Housing Income'!R30C7","HousingIncomeRentGridAnnualContractRent12","2021 RFP Workbook(1).xlsm","$G$30"]
["='Housing Income'!R31C7","HousingIncomeRentGridAnnualContractRent13","2021 RFP Workbook(1).xlsm","$G$31"]
["='Housing Income'!R32C7","HousingIncomeRentGridAnnualContractRent14","2021 RFP Workbook(1).xlsm","$G$32"]
["='Housing Income'!R33C7","HousingIncomeRentGridAnnualContractRent15","2021 RFP Workbook(1).xlsm","$G$33"]
["='Housing Income'!R34C7","HousingIncomeRentGridAnnualContractRent16","2021 RFP Workbook(1).xlsm","$G$34"]
["='Housing Income'!R35C7","HousingIncomeRentGridAnnualContractRent17","2021 RFP Workbook(1).xlsm","$G$35"]
["='Housing Income'!R36C7","HousingIncomeRentGridAnnualContractRent18","2021 RFP Workbook(1).xlsm","$G$36"]
["='Housing Income'!R37C7","HousingIncomeRentGridAnnualContractRent19","2021 RFP Workbook(1).xlsm","$G$37"]
["='Housing Income'!R20C7","HousingIncomeRentGridAnnualContractRent2","2021 RFP Workbook(1).xlsm","$G$20"]
["='Housing Income'!R38C7","HousingIncomeRentGridAnnualContractRent20","2021 RFP Workbook(1).xlsm","$G$38"]
["='Housing Income'!R39C7","HousingIncomeRentGridAnnualContractRent21","2021 RFP Workbook(1).xlsm","$G$39"]
["='Housing Income'!R21C7","HousingIncomeRentGridAnnualContractRent3","2021 RFP Workbook(1).xlsm","$G$21"]
["='Housing Income'!R22C7","HousingIncomeRentGridAnnualContractRent4","2021 RFP Workbook(1).xlsm","$G$22"]
["='Housing Income'!R23C7","HousingIncomeRentGridAnnualContractRent5","2021 RFP Workbook(1).xlsm","$G$23"]
["='Housing Income'!R24C7","HousingIncomeRentGridAnnualContractRent6","2021 RFP Workbook(1).xlsm","$G$24"]
["='Housing Income'!R25C7","HousingIncomeRentGridAnnualContractRent7","2021 RFP Workbook(1).xlsm","$G$25"]
["='Housing Income'!R26C7","HousingIncomeRentGridAnnualContractRent8","2021 RFP Workbook(1).xlsm","$G$26"]
["='Housing Income'!R27C7","HousingIncomeRentGridAnnualContractRent9","2021 RFP Workbook(1).xlsm","$G$27"]
["='Housing Income'!R19C11","HousingIncomeRentGridIncomeLimit1","2021 RFP Workbook(1).xlsm","$K$19"]
["='Housing Income'!R28C11","HousingIncomeRentGridIncomeLimit10","2021 RFP Workbook(1).xlsm","$K$28"]
["='Housing Income'!R29C11","HousingIncomeRentGridIncomeLimit11","2021 RFP Workbook(1).xlsm","$K$29"]
["='Housing Income'!R30C11","HousingIncomeRentGridIncomeLimit12","2021 RFP Workbook(1).xlsm","$K$30"]
["='Housing Income'!R31C11","HousingIncomeRentGridIncomeLimit13","2021 RFP Workbook(1).xlsm","$K$31"]
["='Housing Income'!R32C11","HousingIncomeRentGridIncomeLimit14","2021 RFP Workbook(1).xlsm","$K$32"]
["='Housing Income'!R33C11","HousingIncomeRentGridIncomeLimit15","2021 RFP Workbook(1).xlsm","$K$33"]
["='Housing Income'!R34C11","HousingIncomeRentGridIncomeLimit16","2021 RFP Workbook(1).xlsm","$K$34"]
["='Housing Income'!R35C11","HousingIncomeRentGridIncomeLimit17","2021 RFP Workbook(1).xlsm","$K$35"]
["='Housing Income'!R36C11","HousingIncomeRentGridIncomeLimit18","2021 RFP Workbook(1).xlsm","$K$36"]
["='Housing Income'!R37C11","HousingIncomeRentGridIncomeLimit19","2021 RFP Workbook(1).xlsm","$K$37"]
["='Housing Income'!R20C11","HousingIncomeRentGridIncomeLimit2","2021 RFP Workbook(1).xlsm","$K$20"]
["='Housing Income'!R38C11","HousingIncomeRentGridIncomeLimit20","2021 RFP Workbook(1).xlsm","$K$38"]
["='Housing Income'!R39C11","HousingIncomeRentGridIncomeLimit21","2021 RFP Workbook(1).xlsm","$K$39"]
["='Housing Income'!R21C11","HousingIncomeRentGridIncomeLimit3","2021 RFP Workbook(1).xlsm","$K$21"]
["='Housing Income'!R22C11","HousingIncomeRentGridIncomeLimit4","2021 RFP Workbook(1).xlsm","$K$22"]
["='Housing Income'!R23C11","HousingIncomeRentGridIncomeLimit5","2021 RFP Workbook(1).xlsm","$K$23"]
["='Housing Income'!R24C11","HousingIncomeRentGridIncomeLimit6","2021 RFP Workbook(1).xlsm","$K$24"]
["='Housing Income'!R25C11","HousingIncomeRentGridIncomeLimit7","2021 RFP Workbook(1).xlsm","$K$25"]
["='Housing Income'!R26C11","HousingIncomeRentGridIncomeLimit8","2021 RFP Workbook(1).xlsm","$K$26"]
["='Housing Income'!R27C11","HousingIncomeRentGridIncomeLimit9","2021 RFP Workbook(1).xlsm","$K$27"]
["='Housing Income'!R19C6","HousingIncomeRentGridMonthlyContractRent1","2021 RFP Workbook(1).xlsm","$F$19"]
["='Housing Income'!R28C6","HousingIncomeRentGridMonthlyContractRent10","2021 RFP Workbook(1).xlsm","$F$28"]
["='Housing Income'!R29C6","HousingIncomeRentGridMonthlyContractRent11","2021 RFP Workbook(1).xlsm","$F$29"]
["='Housing Income'!R30C6","HousingIncomeRentGridMonthlyContractRent12","2021 RFP Workbook(1).xlsm","$F$30"]
["='Housing Income'!R31C6","HousingIncomeRentGridMonthlyContractRent13","2021 RFP Workbook(1).xlsm","$F$31"]
["='Housing Income'!R32C6","HousingIncomeRentGridMonthlyContractRent14","2021 RFP Workbook(1).xlsm","$F$32"]
["='Housing Income'!R33C6","HousingIncomeRentGridMonthlyContractRent15","2021 RFP Workbook(1).xlsm","$F$33"]
["='Housing Income'!R34C6","HousingIncomeRentGridMonthlyContractRent16","2021 RFP Workbook(1).xlsm","$F$34"]
["='Housing Income'!R35C6","HousingIncomeRentGridMonthlyContractRent17","2021 RFP Workbook(1).xlsm","$F$35"]
["='Housing Income'!R36C6","HousingIncomeRentGridMonthlyContractRent18","2021 RFP Workbook(1).xlsm","$F$36"]
["='Housing Income'!R37C6","HousingIncomeRentGridMonthlyContractRent19","2021 RFP Workbook(1).xlsm","$F$37"]
["='Housing Income'!R20C6","HousingIncomeRentGridMonthlyContractRent2","2021 RFP Workbook(1).xlsm","$F$20"]
["='Housing Income'!R38C6","HousingIncomeRentGridMonthlyContractRent20","2021 RFP Workbook(1).xlsm","$F$38"]
["='Housing Income'!R39C6","HousingIncomeRentGridMonthlyContractRent21","2021 RFP Workbook(1).xlsm","$F$39"]
["='Housing Income'!R21C6","HousingIncomeRentGridMonthlyContractRent3","2021 RFP Workbook(1).xlsm","$F$21"]
["='Housing Income'!R22C6","HousingIncomeRentGridMonthlyContractRent4","2021 RFP Workbook(1).xlsm","$F$22"]
["='Housing Income'!R23C6","HousingIncomeRentGridMonthlyContractRent5","2021 RFP Workbook(1).xlsm","$F$23"]
["='Housing Income'!R24C6","HousingIncomeRentGridMonthlyContractRent6","2021 RFP Workbook(1).xlsm","$F$24"]
["='Housing Income'!R25C6","HousingIncomeRentGridMonthlyContractRent7","2021 RFP Workbook(1).xlsm","$F$25"]
["='Housing Income'!R26C6","HousingIncomeRentGridMonthlyContractRent8","2021 RFP Workbook(1).xlsm","$F$26"]
["='Housing Income'!R27C6","HousingIncomeRentGridMonthlyContractRent9","2021 RFP Workbook(1).xlsm","$F$27"]
["='Housing Income'!R19C9","HousingIncomeRentGridMonthlyGrossRent1","2021 RFP Workbook(1).xlsm","$I$19"]
["='Housing Income'!R28C9","HousingIncomeRentGridMonthlyGrossRent10","2021 RFP Workbook(1).xlsm","$I$28"]
["='Housing Income'!R29C9","HousingIncomeRentGridMonthlyGrossRent11","2021 RFP Workbook(1).xlsm","$I$29"]
["='Housing Income'!R30C9","HousingIncomeRentGridMonthlyGrossRent12","2021 RFP Workbook(1).xlsm","$I$30"]
["='Housing Income'!R31C9","HousingIncomeRentGridMonthlyGrossRent13","2021 RFP Workbook(1).xlsm","$I$31"]
["='Housing Income'!R32C9","HousingIncomeRentGridMonthlyGrossRent14","2021 RFP Workbook(1).xlsm","$I$32"]
["='Housing Income'!R33C9","HousingIncomeRentGridMonthlyGrossRent15","2021 RFP Workbook(1).xlsm","$I$33"]
["='Housing Income'!R34C9","HousingIncomeRentGridMonthlyGrossRent16","2021 RFP Workbook(1).xlsm","$I$34"]
["='Housing Income'!R35C9","HousingIncomeRentGridMonthlyGrossRent17","2021 RFP Workbook(1).xlsm","$I$35"]
["='Housing Income'!R36C9","HousingIncomeRentGridMonthlyGrossRent18","2021 RFP Workbook(1).xlsm","$I$36"]
["='Housing Income'!R37C9","HousingIncomeRentGridMonthlyGrossRent19","2021 RFP Workbook(1).xlsm","$I$37"]
["='Housing Income'!R20C9","HousingIncomeRentGridMonthlyGrossRent2","2021 RFP Workbook(1).xlsm","$I$20"]
["='Housing Income'!R38C9","HousingIncomeRentGridMonthlyGrossRent20","2021 RFP Workbook(1).xlsm","$I$38"]
["='Housing Income'!R39C9","HousingIncomeRentGridMonthlyGrossRent21","2021 RFP Workbook(1).xlsm","$I$39"]
["='Housing Income'!R21C9","HousingIncomeRentGridMonthlyGrossRent3","2021 RFP Workbook(1).xlsm","$I$21"]
["='Housing Income'!R22C9","HousingIncomeRentGridMonthlyGrossRent4","2021 RFP Workbook(1).xlsm","$I$22"]
["='Housing Income'!R23C9","HousingIncomeRentGridMonthlyGrossRent5","2021 RFP Workbook(1).xlsm","$I$23"]
["='Housing Income'!R24C9","HousingIncomeRentGridMonthlyGrossRent6","2021 RFP Workbook(1).xlsm","$I$24"]
["='Housing Income'!R25C9","HousingIncomeRentGridMonthlyGrossRent7","2021 RFP Workbook(1).xlsm","$I$25"]
["='Housing Income'!R26C9","HousingIncomeRentGridMonthlyGrossRent8","2021 RFP Workbook(1).xlsm","$I$26"]
["='Housing Income'!R27C9","HousingIncomeRentGridMonthlyGrossRent9","2021 RFP Workbook(1).xlsm","$I$27"]
["='Housing Income'!R19C4","HousingIncomeRentGridNbrUnits1","2021 RFP Workbook(1).xlsm","$D$19"]
["='Housing Income'!R28C4","HousingIncomeRentGridNbrUnits10","2021 RFP Workbook(1).xlsm","$D$28"]
["='Housing Income'!R29C4","HousingIncomeRentGridNbrUnits11","2021 RFP Workbook(1).xlsm","$D$29"]
["='Housing Income'!R30C4","HousingIncomeRentGridNbrUnits12","2021 RFP Workbook(1).xlsm","$D$30"]
["='Housing Income'!R31C4","HousingIncomeRentGridNbrUnits13","2021 RFP Workbook(1).xlsm","$D$31"]
["='Housing Income'!R32C4","HousingIncomeRentGridNbrUnits14","2021 RFP Workbook(1).xlsm","$D$32"]
["='Housing Income'!R33C4","HousingIncomeRentGridNbrUnits15","2021 RFP Workbook(1).xlsm","$D$33"]
["='Housing Income'!R34C4","HousingIncomeRentGridNbrUnits16","2021 RFP Workbook(1).xlsm","$D$34"]
["='Housing Income'!R35C4","HousingIncomeRentGridNbrUnits17","2021 RFP Workbook(1).xlsm","$D$35"]
["='Housing Income'!R36C4","HousingIncomeRentGridNbrUnits18","2021 RFP Workbook(1).xlsm","$D$36"]
["='Housing Income'!R37C4","HousingIncomeRentGridNbrUnits19","2021 RFP Workbook(1).xlsm","$D$37"]
["='Housing Income'!R20C4","HousingIncomeRentGridNbrUnits2","2021 RFP Workbook(1).xlsm","$D$20"]
["='Housing Income'!R38C4","HousingIncomeRentGridNbrUnits20","2021 RFP Workbook(1).xlsm","$D$38"]
["='Housing Income'!R39C4","HousingIncomeRentGridNbrUnits21","2021 RFP Workbook(1).xlsm","$D$39"]
["='Housing Income'!R21C4","HousingIncomeRentGridNbrUnits3","2021 RFP Workbook(1).xlsm","$D$21"]
["='Housing Income'!R22C4","HousingIncomeRentGridNbrUnits4","2021 RFP Workbook(1).xlsm","$D$22"]
["='Housing Income'!R23C4","HousingIncomeRentGridNbrUnits5","2021 RFP Workbook(1).xlsm","$D$23"]
["='Housing Income'!R24C4","HousingIncomeRentGridNbrUnits6","2021 RFP Workbook(1).xlsm","$D$24"]
["='Housing Income'!R25C4","HousingIncomeRentGridNbrUnits7","2021 RFP Workbook(1).xlsm","$D$25"]
["='Housing Income'!R26C4","HousingIncomeRentGridNbrUnits8","2021 RFP Workbook(1).xlsm","$D$26"]
["='Housing Income'!R27C4","HousingIncomeRentGridNbrUnits9","2021 RFP Workbook(1).xlsm","$D$27"]
["='Housing Income'!R19C4:R39C4","HousingIncomeRentGridNbrUnitsRange","2021 RFP Workbook(1).xlsm","$D$19:$D$39"]
["='Housing Income'!R19C3","HousingIncomeRentGridNumberOfBathrooms1","2021 RFP Workbook(1).xlsm","$C$19"]
["='Housing Income'!R28C3","HousingIncomeRentGridNumberOfBathrooms10","2021 RFP Workbook(1).xlsm","$C$28"]
["='Housing Income'!R29C3","HousingIncomeRentGridNumberOfBathrooms11","2021 RFP Workbook(1).xlsm","$C$29"]
["='Housing Income'!R30C3","HousingIncomeRentGridNumberOfBathrooms12","2021 RFP Workbook(1).xlsm","$C$30"]
["='Housing Income'!R31C3","HousingIncomeRentGridNumberOfBathrooms13","2021 RFP Workbook(1).xlsm","$C$31"]
["='Housing Income'!R32C3","HousingIncomeRentGridNumberOfBathrooms14","2021 RFP Workbook(1).xlsm","$C$32"]
["='Housing Income'!R33C3","HousingIncomeRentGridNumberOfBathrooms15","2021 RFP Workbook(1).xlsm","$C$33"]
["='Housing Income'!R34C3","HousingIncomeRentGridNumberOfBathrooms16","2021 RFP Workbook(1).xlsm","$C$34"]
["='Housing Income'!R35C3","HousingIncomeRentGridNumberOfBathrooms17","2021 RFP Workbook(1).xlsm","$C$35"]
["='Housing Income'!R36C3","HousingIncomeRentGridNumberOfBathrooms18","2021 RFP Workbook(1).xlsm","$C$36"]
["='Housing Income'!R37C3","HousingIncomeRentGridNumberOfBathrooms19","2021 RFP Workbook(1).xlsm","$C$37"]
["='Housing Income'!R20C3","HousingIncomeRentGridNumberOfBathrooms2","2021 RFP Workbook(1).xlsm","$C$20"]
["='Housing Income'!R38C3","HousingIncomeRentGridNumberOfBathrooms20","2021 RFP Workbook(1).xlsm","$C$38"]
["='Housing Income'!R39C3","HousingIncomeRentGridNumberOfBathrooms21","2021 RFP Workbook(1).xlsm","$C$39"]
["='Housing Income'!R21C3","HousingIncomeRentGridNumberOfBathrooms3","2021 RFP Workbook(1).xlsm","$C$21"]
["='Housing Income'!R22C3","HousingIncomeRentGridNumberOfBathrooms4","2021 RFP Workbook(1).xlsm","$C$22"]
["='Housing Income'!R23C3","HousingIncomeRentGridNumberOfBathrooms5","2021 RFP Workbook(1).xlsm","$C$23"]
["='Housing Income'!R24C3","HousingIncomeRentGridNumberOfBathrooms6","2021 RFP Workbook(1).xlsm","$C$24"]
["='Housing Income'!R25C3","HousingIncomeRentGridNumberOfBathrooms7","2021 RFP Workbook(1).xlsm","$C$25"]
["='Housing Income'!R26C3","HousingIncomeRentGridNumberOfBathrooms8","2021 RFP Workbook(1).xlsm","$C$26"]
["='Housing Income'!R27C3","HousingIncomeRentGridNumberOfBathrooms9","2021 RFP Workbook(1).xlsm","$C$27"]
["='Housing Income'!R19C23","HousingIncomeRentGridRAorOperatingSubsidySource1","2021 RFP Workbook(1).xlsm","$W$19"]
["='Housing Income'!R28C23","HousingIncomeRentGridRAorOperatingSubsidySource10","2021 RFP Workbook(1).xlsm","$W$28"]
["='Housing Income'!R29C23","HousingIncomeRentGridRAorOperatingSubsidySource11","2021 RFP Workbook(1).xlsm","$W$29"]
["='Housing Income'!R30C23","HousingIncomeRentGridRAorOperatingSubsidySource12","2021 RFP Workbook(1).xlsm","$W$30"]
["='Housing Income'!R39C23","HousingIncomeRentGridRAorOperatingSubsidySource121","2021 RFP Workbook(1).xlsm","$W$39"]
["='Housing Income'!R31C23","HousingIncomeRentGridRAorOperatingSubsidySource13","2021 RFP Workbook(1).xlsm","$W$31"]
["='Housing Income'!R32C23","HousingIncomeRentGridRAorOperatingSubsidySource14","2021 RFP Workbook(1).xlsm","$W$32"]
["='Housing Income'!R33C23","HousingIncomeRentGridRAorOperatingSubsidySource15","2021 RFP Workbook(1).xlsm","$W$33"]
["='Housing Income'!R34C23","HousingIncomeRentGridRAorOperatingSubsidySource16","2021 RFP Workbook(1).xlsm","$W$34"]
["='Housing Income'!R35C23","HousingIncomeRentGridRAorOperatingSubsidySource17","2021 RFP Workbook(1).xlsm","$W$35"]
["='Housing Income'!R36C23","HousingIncomeRentGridRAorOperatingSubsidySource18","2021 RFP Workbook(1).xlsm","$W$36"]
["='Housing Income'!R37C23","HousingIncomeRentGridRAorOperatingSubsidySource19","2021 RFP Workbook(1).xlsm","$W$37"]
["='Housing Income'!R20C23","HousingIncomeRentGridRAorOperatingSubsidySource2","2021 RFP Workbook(1).xlsm","$W$20"]
["='Housing Income'!R38C23","HousingIncomeRentGridRAorOperatingSubsidySource20","2021 RFP Workbook(1).xlsm","$W$38"]
["='Housing Income'!R21C23","HousingIncomeRentGridRAorOperatingSubsidySource3","2021 RFP Workbook(1).xlsm","$W$21"]
["='Housing Income'!R22C23","HousingIncomeRentGridRAorOperatingSubsidySource4","2021 RFP Workbook(1).xlsm","$W$22"]
["='Housing Income'!R23C23","HousingIncomeRentGridRAorOperatingSubsidySource5","2021 RFP Workbook(1).xlsm","$W$23"]
["='Housing Income'!R24C23","HousingIncomeRentGridRAorOperatingSubsidySource6","2021 RFP Workbook(1).xlsm","$W$24"]
["='Housing Income'!R25C23","HousingIncomeRentGridRAorOperatingSubsidySource7","2021 RFP Workbook(1).xlsm","$W$25"]
["='Housing Income'!R26C23","HousingIncomeRentGridRAorOperatingSubsidySource8","2021 RFP Workbook(1).xlsm","$W$26"]
["='Housing Income'!R27C23","HousingIncomeRentGridRAorOperatingSubsidySource9","2021 RFP Workbook(1).xlsm","$W$27"]
["='Housing Income'!R19C10","HousingIncomeRentGridRentLimit1","2021 RFP Workbook(1).xlsm","$J$19"]
["='Housing Income'!R28C10","HousingIncomeRentGridRentLimit10","2021 RFP Workbook(1).xlsm","$J$28"]
["='Housing Income'!R29C10","HousingIncomeRentGridRentLimit11","2021 RFP Workbook(1).xlsm","$J$29"]
["='Housing Income'!R30C10","HousingIncomeRentGridRentLimit12","2021 RFP Workbook(1).xlsm","$J$30"]
["='Housing Income'!R31C10","HousingIncomeRentGridRentLimit13","2021 RFP Workbook(1).xlsm","$J$31"]
["='Housing Income'!R32C10","HousingIncomeRentGridRentLimit14","2021 RFP Workbook(1).xlsm","$J$32"]
["='Housing Income'!R33C10","HousingIncomeRentGridRentLimit15","2021 RFP Workbook(1).xlsm","$J$33"]
["='Housing Income'!R34C10","HousingIncomeRentGridRentLimit16","2021 RFP Workbook(1).xlsm","$J$34"]
["='Housing Income'!R35C10","HousingIncomeRentGridRentLimit17","2021 RFP Workbook(1).xlsm","$J$35"]
["='Housing Income'!R36C10","HousingIncomeRentGridRentLimit18","2021 RFP Workbook(1).xlsm","$J$36"]
["='Housing Income'!R37C10","HousingIncomeRentGridRentLimit19","2021 RFP Workbook(1).xlsm","$J$37"]
["='Housing Income'!R20C10","HousingIncomeRentGridRentLimit2","2021 RFP Workbook(1).xlsm","$J$20"]
["='Housing Income'!R38C10","HousingIncomeRentGridRentLimit20","2021 RFP Workbook(1).xlsm","$J$38"]
["='Housing Income'!R39C10","HousingIncomeRentGridRentLimit21","2021 RFP Workbook(1).xlsm","$J$39"]
["='Housing Income'!R21C10","HousingIncomeRentGridRentLimit3","2021 RFP Workbook(1).xlsm","$J$21"]
["='Housing Income'!R22C10","HousingIncomeRentGridRentLimit4","2021 RFP Workbook(1).xlsm","$J$22"]
["='Housing Income'!R23C10","HousingIncomeRentGridRentLimit5","2021 RFP Workbook(1).xlsm","$J$23"]
["='Housing Income'!R24C10","HousingIncomeRentGridRentLimit6","2021 RFP Workbook(1).xlsm","$J$24"]
["='Housing Income'!R25C10","HousingIncomeRentGridRentLimit7","2021 RFP Workbook(1).xlsm","$J$25"]
["='Housing Income'!R26C10","HousingIncomeRentGridRentLimit8","2021 RFP Workbook(1).xlsm","$J$26"]
["='Housing Income'!R27C10","HousingIncomeRentGridRentLimit9","2021 RFP Workbook(1).xlsm","$J$27"]
["='Housing Income'!R19C10:R39C10","HousingIncomeRentGridRentLimitColumn","2021 RFP Workbook(1).xlsm","$J$19:$J$39"]
["='Housing Income'!R19C5","HousingIncomeRentGridSqFt1","2021 RFP Workbook(1).xlsm","$E$19"]
["='Housing Income'!R28C5","HousingIncomeRentGridSqFt10","2021 RFP Workbook(1).xlsm","$E$28"]
["='Housing Income'!R29C5","HousingIncomeRentGridSqFt11","2021 RFP Workbook(1).xlsm","$E$29"]
["='Housing Income'!R30C5","HousingIncomeRentGridSqFt12","2021 RFP Workbook(1).xlsm","$E$30"]
["='Housing Income'!R31C5","HousingIncomeRentGridSqFt13","2021 RFP Workbook(1).xlsm","$E$31"]
["='Housing Income'!R32C5","HousingIncomeRentGridSqFt14","2021 RFP Workbook(1).xlsm","$E$32"]
["='Housing Income'!R33C5","HousingIncomeRentGridSqFt15","2021 RFP Workbook(1).xlsm","$E$33"]
["='Housing Income'!R34C5","HousingIncomeRentGridSqFt16","2021 RFP Workbook(1).xlsm","$E$34"]
["='Housing Income'!R35C5","HousingIncomeRentGridSqFt17","2021 RFP Workbook(1).xlsm","$E$35"]
["='Housing Income'!R36C5","HousingIncomeRentGridSqFt18","2021 RFP Workbook(1).xlsm","$E$36"]
["='Housing Income'!R37C5","HousingIncomeRentGridSqFt19","2021 RFP Workbook(1).xlsm","$E$37"]
["='Housing Income'!R20C5","HousingIncomeRentGridSqFt2","2021 RFP Workbook(1).xlsm","$E$20"]
["='Housing Income'!R38C5","HousingIncomeRentGridSqFt20","2021 RFP Workbook(1).xlsm","$E$38"]
["='Housing Income'!R39C5","HousingIncomeRentGridSqFt21","2021 RFP Workbook(1).xlsm","$E$39"]
["='Housing Income'!R21C5","HousingIncomeRentGridSqFt3","2021 RFP Workbook(1).xlsm","$E$21"]
["='Housing Income'!R22C5","HousingIncomeRentGridSqFt4","2021 RFP Workbook(1).xlsm","$E$22"]
["='Housing Income'!R23C5","HousingIncomeRentGridSqFt5","2021 RFP Workbook(1).xlsm","$E$23"]
["='Housing Income'!R24C5","HousingIncomeRentGridSqFt6","2021 RFP Workbook(1).xlsm","$E$24"]
["='Housing Income'!R25C5","HousingIncomeRentGridSqFt7","2021 RFP Workbook(1).xlsm","$E$25"]
["='Housing Income'!R26C5","HousingIncomeRentGridSqFt8","2021 RFP Workbook(1).xlsm","$E$26"]
["='Housing Income'!R27C5","HousingIncomeRentGridSqFt9","2021 RFP Workbook(1).xlsm","$E$27"]
["='Housing Income'!R19C8:R39C8","HousingIncomeRentGridTenantPdUtilities","2021 RFP Workbook(1).xlsm","$H$19:$H$39"]
["='Housing Income'!R19C8","HousingIncomeRentGridTenantPdUtilities1","2021 RFP Workbook(1).xlsm","$H$19"]
["='Housing Income'!R28C8","HousingIncomeRentGridTenantPdUtilities10","2021 RFP Workbook(1).xlsm","$H$28"]
["='Housing Income'!R29C8","HousingIncomeRentGridTenantPdUtilities11","2021 RFP Workbook(1).xlsm","$H$29"]
["='Housing Income'!R30C8","HousingIncomeRentGridTenantPdUtilities12","2021 RFP Workbook(1).xlsm","$H$30"]
["='Housing Income'!R31C8","HousingIncomeRentGridTenantPdUtilities13","2021 RFP Workbook(1).xlsm","$H$31"]
["='Housing Income'!R32C8","HousingIncomeRentGridTenantPdUtilities14","2021 RFP Workbook(1).xlsm","$H$32"]
["='Housing Income'!R33C8","HousingIncomeRentGridTenantPdUtilities15","2021 RFP Workbook(1).xlsm","$H$33"]
["='Housing Income'!R34C8","HousingIncomeRentGridTenantPdUtilities16","2021 RFP Workbook(1).xlsm","$H$34"]
["='Housing Income'!R35C8","HousingIncomeRentGridTenantPdUtilities17","2021 RFP Workbook(1).xlsm","$H$35"]
["='Housing Income'!R36C8","HousingIncomeRentGridTenantPdUtilities18","2021 RFP Workbook(1).xlsm","$H$36"]
["='Housing Income'!R37C8","HousingIncomeRentGridTenantPdUtilities19","2021 RFP Workbook(1).xlsm","$H$37"]
["='Housing Income'!R20C8","HousingIncomeRentGridTenantPdUtilities2","2021 RFP Workbook(1).xlsm","$H$20"]
["='Housing Income'!R38C8","HousingIncomeRentGridTenantPdUtilities20","2021 RFP Workbook(1).xlsm","$H$38"]
["='Housing Income'!R39C8","HousingIncomeRentGridTenantPdUtilities21","2021 RFP Workbook(1).xlsm","$H$39"]
["='Housing Income'!R21C8","HousingIncomeRentGridTenantPdUtilities3","2021 RFP Workbook(1).xlsm","$H$21"]
["='Housing Income'!R22C8","HousingIncomeRentGridTenantPdUtilities4","2021 RFP Workbook(1).xlsm","$H$22"]
["='Housing Income'!R23C8","HousingIncomeRentGridTenantPdUtilities5","2021 RFP Workbook(1).xlsm","$H$23"]
["='Housing Income'!R24C8","HousingIncomeRentGridTenantPdUtilities6","2021 RFP Workbook(1).xlsm","$H$24"]
["='Housing Income'!R25C8","HousingIncomeRentGridTenantPdUtilities7","2021 RFP Workbook(1).xlsm","$H$25"]
["='Housing Income'!R26C8","HousingIncomeRentGridTenantPdUtilities8","2021 RFP Workbook(1).xlsm","$H$26"]
["='Housing Income'!R27C8","HousingIncomeRentGridTenantPdUtilities9","2021 RFP Workbook(1).xlsm","$H$27"]
["='Housing Income'!R19C7:R39C7","HousingIncomeRentGridTotalAnnualContractRentRange","2021 RFP Workbook(1).xlsm","$G$19:$G$39"]
["='Housing Income'!R19C22","HousingIncomeRentGridTotalRooms1","2021 RFP Workbook(1).xlsm","$V$19"]
["='Housing Income'!R28C22","HousingIncomeRentGridTotalRooms10","2021 RFP Workbook(1).xlsm","$V$28"]
["='Housing Income'!R29C22","HousingIncomeRentGridTotalRooms11","2021 RFP Workbook(1).xlsm","$V$29"]
["='Housing Income'!R30C22","HousingIncomeRentGridTotalRooms12","2021 RFP Workbook(1).xlsm","$V$30"]
["='Housing Income'!R31C22","HousingIncomeRentGridTotalRooms13","2021 RFP Workbook(1).xlsm","$V$31"]
["='Housing Income'!R32C22","HousingIncomeRentGridTotalRooms14","2021 RFP Workbook(1).xlsm","$V$32"]
["='Housing Income'!R33C22","HousingIncomeRentGridTotalRooms15","2021 RFP Workbook(1).xlsm","$V$33"]
["='Housing Income'!R34C22","HousingIncomeRentGridTotalRooms16","2021 RFP Workbook(1).xlsm","$V$34"]
["='Housing Income'!R35C22","HousingIncomeRentGridTotalRooms17","2021 RFP Workbook(1).xlsm","$V$35"]
["='Housing Income'!R36C22","HousingIncomeRentGridTotalRooms18","2021 RFP Workbook(1).xlsm","$V$36"]
["='Housing Income'!R37C22","HousingIncomeRentGridTotalRooms19","2021 RFP Workbook(1).xlsm","$V$37"]
["='Housing Income'!R20C22","HousingIncomeRentGridTotalRooms2","2021 RFP Workbook(1).xlsm","$V$20"]
["='Housing Income'!R38C22","HousingIncomeRentGridTotalRooms20","2021 RFP Workbook(1).xlsm","$V$38"]
["='Housing Income'!R39C22","HousingIncomeRentGridTotalRooms21","2021 RFP Workbook(1).xlsm","$V$39"]
["='Housing Income'!R21C22","HousingIncomeRentGridTotalRooms3","2021 RFP Workbook(1).xlsm","$V$21"]
["='Housing Income'!R22C22","HousingIncomeRentGridTotalRooms4","2021 RFP Workbook(1).xlsm","$V$22"]
["='Housing Income'!R23C22","HousingIncomeRentGridTotalRooms5","2021 RFP Workbook(1).xlsm","$V$23"]
["='Housing Income'!R24C22","HousingIncomeRentGridTotalRooms6","2021 RFP Workbook(1).xlsm","$V$24"]
["='Housing Income'!R25C22","HousingIncomeRentGridTotalRooms7","2021 RFP Workbook(1).xlsm","$V$25"]
["='Housing Income'!R26C22","HousingIncomeRentGridTotalRooms8","2021 RFP Workbook(1).xlsm","$V$26"]
["='Housing Income'!R27C22","HousingIncomeRentGridTotalRooms9","2021 RFP Workbook(1).xlsm","$V$27"]
["='Housing Income'!R19C2","HousingIncomeRentGridUnitType1","2021 RFP Workbook(1).xlsm","$B$19"]
["='Housing Income'!R28C2","HousingIncomeRentGridUnitType10","2021 RFP Workbook(1).xlsm","$B$28"]
["='Housing Income'!R29C2","HousingIncomeRentGridUnitType11","2021 RFP Workbook(1).xlsm","$B$29"]
["='Housing Income'!R30C2","HousingIncomeRentGridUnitType12","2021 RFP Workbook(1).xlsm","$B$30"]
["='Housing Income'!R31C2","HousingIncomeRentGridUnitType13","2021 RFP Workbook(1).xlsm","$B$31"]
["='Housing Income'!R32C2","HousingIncomeRentGridUnitType14","2021 RFP Workbook(1).xlsm","$B$32"]
["='Housing Income'!R33C2","HousingIncomeRentGridUnitType15","2021 RFP Workbook(1).xlsm","$B$33"]
["='Housing Income'!R34C2","HousingIncomeRentGridUnitType16","2021 RFP Workbook(1).xlsm","$B$34"]
["='Housing Income'!R35C2","HousingIncomeRentGridUnitType17","2021 RFP Workbook(1).xlsm","$B$35"]
["='Housing Income'!R36C2","HousingIncomeRentGridUnitType18","2021 RFP Workbook(1).xlsm","$B$36"]
["='Housing Income'!R37C2","HousingIncomeRentGridUnitType19","2021 RFP Workbook(1).xlsm","$B$37"]
["='Housing Income'!R20C2","HousingIncomeRentGridUnitType2","2021 RFP Workbook(1).xlsm","$B$20"]
["='Housing Income'!R38C2","HousingIncomeRentGridUnitType20","2021 RFP Workbook(1).xlsm","$B$38"]
["='Housing Income'!R39C2","HousingIncomeRentGridUnitType21","2021 RFP Workbook(1).xlsm","$B$39"]
["='Housing Income'!R21C2","HousingIncomeRentGridUnitType3","2021 RFP Workbook(1).xlsm","$B$21"]
["='Housing Income'!R22C2","HousingIncomeRentGridUnitType4","2021 RFP Workbook(1).xlsm","$B$22"]
["='Housing Income'!R23C2","HousingIncomeRentGridUnitType5","2021 RFP Workbook(1).xlsm","$B$23"]
["='Housing Income'!R24C2","HousingIncomeRentGridUnitType6","2021 RFP Workbook(1).xlsm","$B$24"]
["='Housing Income'!R25C2","HousingIncomeRentGridUnitType7","2021 RFP Workbook(1).xlsm","$B$25"]
["='Housing Income'!R26C2","HousingIncomeRentGridUnitType8","2021 RFP Workbook(1).xlsm","$B$26"]
["='Housing Income'!R27C2","HousingIncomeRentGridUnitType9","2021 RFP Workbook(1).xlsm","$B$27"]
["='Housing Income'!R19C2:R39C2","HousingIncomeRentGridUnitTypeRange","2021 RFP Workbook(1).xlsm","$B$19:$B$39"]
["='Housing Income'!R19C10:R39C12","HousingIncomeRentIncomeLimit","2021 RFP Workbook(1).xlsm","$J$19:$L$39"]
["='Housing Income'!R3C26:R123C50","HousingIncomeScratchPad","2021 RFP Workbook(1).xlsm","$Z$3:$AX$123"]
["='Housing Income'!R9C7","HousingIncomeTenantPaidUtilityAllowanceAC0BREff","2021 RFP Workbook(1).xlsm","$G$9"]
["='Housing Income'!R9C8","HousingIncomeTenantPaidUtilityAllowanceAC1BR","2021 RFP Workbook(1).xlsm","$H$9"]
["='Housing Income'!R9C9","HousingIncomeTenantPaidUtilityAllowanceAC2BR","2021 RFP Workbook(1).xlsm","$I$9"]
["='Housing Income'!R9C10","HousingIncomeTenantPaidUtilityAllowanceAC3BR","2021 RFP Workbook(1).xlsm","$J$9"]
["='Housing Income'!R9C11","HousingIncomeTenantPaidUtilityAllowanceAC4BR","2021 RFP Workbook(1).xlsm","$K$9"]
["='Housing Income'!R9C12","HousingIncomeTenantPaidUtilityAllowanceAC5BR","2021 RFP Workbook(1).xlsm","$L$9"]
["='Housing Income'!R9C15","HousingIncomeTenantPaidUtilityAllowanceAC6BR","2021 RFP Workbook(1).xlsm","$O$9"]
["='Housing Income'!R9C5","HousingIncomeTenantPaidUtilityAllowanceACSRONoKitchen","2021 RFP Workbook(1).xlsm","$E$9"]
["='Housing Income'!R9C6","HousingIncomeTenantPaidUtilityAllowanceACSROWithKitchen","2021 RFP Workbook(1).xlsm","$F$9"]
["='Housing Income'!R6C7","HousingIncomeTenantPaidUtilityAllowanceCooking0BREff","2021 RFP Workbook(1).xlsm","$G$6"]
["='Housing Income'!R6C8","HousingIncomeTenantPaidUtilityAllowanceCooking1BR","2021 RFP Workbook(1).xlsm","$H$6"]
["='Housing Income'!R6C9","HousingIncomeTenantPaidUtilityAllowanceCooking2BR","2021 RFP Workbook(1).xlsm","$I$6"]
["='Housing Income'!R6C10","HousingIncomeTenantPaidUtilityAllowanceCooking3BR","2021 RFP Workbook(1).xlsm","$J$6"]
["='Housing Income'!R6C11","HousingIncomeTenantPaidUtilityAllowanceCooking4BR","2021 RFP Workbook(1).xlsm","$K$6"]
["='Housing Income'!R6C12","HousingIncomeTenantPaidUtilityAllowanceCooking5BR","2021 RFP Workbook(1).xlsm","$L$6"]
["='Housing Income'!R6C15","HousingIncomeTenantPaidUtilityAllowanceCooking6BR","2021 RFP Workbook(1).xlsm","$O$6"]
["='Housing Income'!R6C5","HousingIncomeTenantPaidUtilityAllowanceCookingSRONoKitchen","2021 RFP Workbook(1).xlsm","$E$6"]
["='Housing Income'!R6C6","HousingIncomeTenantPaidUtilityAllowanceCookingSROWithKitchen","2021 RFP Workbook(1).xlsm","$F$6"]
["='Housing Income'!R6C4","HousingIncomeTenantPaidUtilityAllowanceCookingUtilityType","2021 RFP Workbook(1).xlsm","$D$6"]
["='Housing Income'!R8C7","HousingIncomeTenantPaidUtilityAllowanceElectric0BREff","2021 RFP Workbook(1).xlsm","$G$8"]
["='Housing Income'!R8C8","HousingIncomeTenantPaidUtilityAllowanceElectric1BR","2021 RFP Workbook(1).xlsm","$H$8"]
["='Housing Income'!R8C9","HousingIncomeTenantPaidUtilityAllowanceElectric2BR","2021 RFP Workbook(1).xlsm","$I$8"]
["='Housing Income'!R8C10","HousingIncomeTenantPaidUtilityAllowanceElectric3BR","2021 RFP Workbook(1).xlsm","$J$8"]
["='Housing Income'!R8C11","HousingIncomeTenantPaidUtilityAllowanceElectric4BR","2021 RFP Workbook(1).xlsm","$K$8"]
["='Housing Income'!R8C12","HousingIncomeTenantPaidUtilityAllowanceElectric5BR","2021 RFP Workbook(1).xlsm","$L$8"]
["='Housing Income'!R8C15","HousingIncomeTenantPaidUtilityAllowanceElectric6BR","2021 RFP Workbook(1).xlsm","$O$8"]
["='Housing Income'!R8C5","HousingIncomeTenantPaidUtilityAllowanceElectricSRONoKitchen","2021 RFP Workbook(1).xlsm","$E$8"]
["='Housing Income'!R8C6","HousingIncomeTenantPaidUtilityAllowanceElectricSROWithKitchen","2021 RFP Workbook(1).xlsm","$F$8"]
["='Housing Income'!R5C7:R12C22","HousingIncomeTenantPaidUtilityAllowanceGridRange","2021 RFP Workbook(1).xlsm","$G$5:$V$12"]
["='Housing Income'!R5C7","HousingIncomeTenantPaidUtilityAllowanceHeating0BREff","2021 RFP Workbook(1).xlsm","$G$5"]
["='Housing Income'!R5C8","HousingIncomeTenantPaidUtilityAllowanceHeating1BR","2021 RFP Workbook(1).xlsm","$H$5"]
["='Housing Income'!R5C9","HousingIncomeTenantPaidUtilityAllowanceHeating2BR","2021 RFP Workbook(1).xlsm","$I$5"]
["='Housing Income'!R5C10","HousingIncomeTenantPaidUtilityAllowanceHeating3BR","2021 RFP Workbook(1).xlsm","$J$5"]
["='Housing Income'!R5C11","HousingIncomeTenantPaidUtilityAllowanceHeating4BR","2021 RFP Workbook(1).xlsm","$K$5"]
["='Housing Income'!R5C12","HousingIncomeTenantPaidUtilityAllowanceHeating5BR","2021 RFP Workbook(1).xlsm","$L$5"]
["='Housing Income'!R5C15","HousingIncomeTenantPaidUtilityAllowanceHeating6BR","2021 RFP Workbook(1).xlsm","$O$5"]
["='Housing Income'!R5C5","HousingIncomeTenantPaidUtilityAllowanceHeatingSRONoKitchen","2021 RFP Workbook(1).xlsm","$E$5"]
["='Housing Income'!R5C6","HousingIncomeTenantPaidUtilityAllowanceHeatingSROWithKitchen","2021 RFP Workbook(1).xlsm","$F$5"]
["='Housing Income'!R5C4","HousingIncomeTenantPaidUtilityAllowanceHeatingUtilityType","2021 RFP Workbook(1).xlsm","$D$5"]
["='Housing Income'!R12C7","HousingIncomeTenantPaidUtilityAllowanceOther0BREff","2021 RFP Workbook(1).xlsm","$G$12"]
["='Housing Income'!R12C8","HousingIncomeTenantPaidUtilityAllowanceOther1BR","2021 RFP Workbook(1).xlsm","$H$12"]
["='Housing Income'!R12C9","HousingIncomeTenantPaidUtilityAllowanceOther2BR","2021 RFP Workbook(1).xlsm","$I$12"]
["='Housing Income'!R12C10","HousingIncomeTenantPaidUtilityAllowanceOther3BR","2021 RFP Workbook(1).xlsm","$J$12"]
["='Housing Income'!R12C11","HousingIncomeTenantPaidUtilityAllowanceOther4BR","2021 RFP Workbook(1).xlsm","$K$12"]
["='Housing Income'!R12C12","HousingIncomeTenantPaidUtilityAllowanceOther5BR","2021 RFP Workbook(1).xlsm","$L$12"]
["='Housing Income'!R12C15","HousingIncomeTenantPaidUtilityAllowanceOther6BR","2021 RFP Workbook(1).xlsm","$O$12"]
["='Housing Income'!R12C5","HousingIncomeTenantPaidUtilityAllowanceOtherSRONoKitchen","2021 RFP Workbook(1).xlsm","$E$12"]
["='Housing Income'!R12C6","HousingIncomeTenantPaidUtilityAllowanceOtherSROWithKitchen","2021 RFP Workbook(1).xlsm","$F$12"]
["='Housing Income'!R11C7","HousingIncomeTenantPaidUtilityAllowanceServiceFee0BREff","2021 RFP Workbook(1).xlsm","$G$11"]
["='Housing Income'!R11C8","HousingIncomeTenantPaidUtilityAllowanceServiceFee1BR","2021 RFP Workbook(1).xlsm","$H$11"]
["='Housing Income'!R11C9","HousingIncomeTenantPaidUtilityAllowanceServiceFee2BR","2021 RFP Workbook(1).xlsm","$I$11"]
["='Housing Income'!R11C10","HousingIncomeTenantPaidUtilityAllowanceServiceFee3BR","2021 RFP Workbook(1).xlsm","$J$11"]
["='Housing Income'!R11C11","HousingIncomeTenantPaidUtilityAllowanceServiceFee4BR","2021 RFP Workbook(1).xlsm","$K$11"]
["='Housing Income'!R11C12","HousingIncomeTenantPaidUtilityAllowanceServiceFee5BR","2021 RFP Workbook(1).xlsm","$L$11"]
["='Housing Income'!R11C15","HousingIncomeTenantPaidUtilityAllowanceServiceFee6BR","2021 RFP Workbook(1).xlsm","$O$11"]
["='Housing Income'!R11C5","HousingIncomeTenantPaidUtilityAllowanceServiceFeeSRONoKitchen","2021 RFP Workbook(1).xlsm","$E$11"]
["='Housing Income'!R11C6","HousingIncomeTenantPaidUtilityAllowanceServiceFeeSROWithKitchen","2021 RFP Workbook(1).xlsm","$F$11"]
["='Housing Income'!R14C3","HousingIncomeTenantPaidUtilityAllowanceSource","2021 RFP Workbook(1).xlsm","$C$14"]
["='Housing Income'!R7C7","HousingIncomeTenantPaidUtilityAllowanceWaterHeating0BREff","2021 RFP Workbook(1).xlsm","$G$7"]
["='Housing Income'!R7C8","HousingIncomeTenantPaidUtilityAllowanceWaterHeating1BR","2021 RFP Workbook(1).xlsm","$H$7"]
["='Housing Income'!R7C9","HousingIncomeTenantPaidUtilityAllowanceWaterHeating2BR","2021 RFP Workbook(1).xlsm","$I$7"]
["='Housing Income'!R7C10","HousingIncomeTenantPaidUtilityAllowanceWaterHeating3BR","2021 RFP Workbook(1).xlsm","$J$7"]
["='Housing Income'!R7C11","HousingIncomeTenantPaidUtilityAllowanceWaterHeating4BR","2021 RFP Workbook(1).xlsm","$K$7"]
["='Housing Income'!R7C12","HousingIncomeTenantPaidUtilityAllowanceWaterHeating5BR","2021 RFP Workbook(1).xlsm","$L$7"]
["='Housing Income'!R7C15","HousingIncomeTenantPaidUtilityAllowanceWaterHeating6BR","2021 RFP Workbook(1).xlsm","$O$7"]
["='Housing Income'!R7C5","HousingIncomeTenantPaidUtilityAllowanceWaterHeatingSRONoKitchen","2021 RFP Workbook(1).xlsm","$E$7"]
["='Housing Income'!R7C6","HousingIncomeTenantPaidUtilityAllowanceWaterHeatingSROWithKitchen","2021 RFP Workbook(1).xlsm","$F$7"]
["='Housing Income'!R7C4","HousingIncomeTenantPaidUtilityAllowanceWaterHeatingUtilityType","2021 RFP Workbook(1).xlsm","$D$7"]
["='Housing Income'!R10C7","HousingIncomeTenantPaidUtilityAllowanceWaterSewer0BREff","2021 RFP Workbook(1).xlsm","$G$10"]
["='Housing Income'!R10C8","HousingIncomeTenantPaidUtilityAllowanceWaterSewer1BR","2021 RFP Workbook(1).xlsm","$H$10"]
["='Housing Income'!R10C9","HousingIncomeTenantPaidUtilityAllowanceWaterSewer2BR","2021 RFP Workbook(1).xlsm","$I$10"]
["='Housing Income'!R10C10","HousingIncomeTenantPaidUtilityAllowanceWaterSewer3BR","2021 RFP Workbook(1).xlsm","$J$10"]
["='Housing Income'!R10C11","HousingIncomeTenantPaidUtilityAllowanceWaterSewer4BR","2021 RFP Workbook(1).xlsm","$K$10"]
["='Housing Income'!R10C12","HousingIncomeTenantPaidUtilityAllowanceWaterSewer5BR","2021 RFP Workbook(1).xlsm","$L$10"]
["='Housing Income'!R10C15","HousingIncomeTenantPaidUtilityAllowanceWaterSewer6BR","2021 RFP Workbook(1).xlsm","$O$10"]
["='Housing Income'!R10C5","HousingIncomeTenantPaidUtilityAllowanceWaterSewerSRONoKitchen","2021 RFP Workbook(1).xlsm","$E$10"]
["='Housing Income'!R10C6","HousingIncomeTenantPaidUtilityAllowanceWaterSewerSROWithKitchen","2021 RFP Workbook(1).xlsm","$F$10"]
["='Housing Income'!R13C5","HousingIncomeTenantPaidUtilityTotal1","2021 RFP Workbook(1).xlsm","$E$13"]
["='Housing Income'!R13C6","HousingIncomeTenantPaidUtilityTotal2","2021 RFP Workbook(1).xlsm","$F$13"]
["='Housing Income'!R13C7","HousingIncomeTenantPaidUtilityTotal3","2021 RFP Workbook(1).xlsm","$G$13"]
["='Housing Income'!R13C8","HousingIncomeTenantPaidUtilityTotal4","2021 RFP Workbook(1).xlsm","$H$13"]
["='Housing Income'!R13C9","HousingIncomeTenantPaidUtilityTotal5","2021 RFP Workbook(1).xlsm","$I$13"]
["='Housing Income'!R13C10","HousingIncomeTenantPaidUtilityTotal6","2021 RFP Workbook(1).xlsm","$J$13"]
["='Housing Income'!R13C11","HousingIncomeTenantPaidUtilityTotal7","2021 RFP Workbook(1).xlsm","$K$13"]
["='Housing Income'!R13C12","HousingIncomeTenantPaidUtilityTotal8","2021 RFP Workbook(1).xlsm","$L$13"]
["='Housing Income'!R13C15","HousingIncomeTenantPaidUtilityTotal9","2021 RFP Workbook(1).xlsm","$O$13"]
["='Housing Income'!R42C4","HousingIncomeTotalNumberOfBathrooms","2021 RFP Workbook(1).xlsm","$D$42"]
["='Housing Income'!R41C23","HousingIncomeTotalRooms","2021 RFP Workbook(1).xlsm","$W$41"]
["='Housing Income'!R41C4","HousingIncomeTotalUnits","2021 RFP Workbook(1).xlsm","$D$41"]
["='Housing Income'!R52C2","HousingIncomeTotalUnitsErrorMsg","2021 RFP Workbook(1).xlsm","$B$52"]
["='Housing Income'!R18C2:R18C23","HousingIncomeUnitRentGridHeaderRow","2021 RFP Workbook(1).xlsm","$B$18:$W$18"]
["='Housing Income'!R19C2:R39C22","HousingIncomeUnitRentGridRange","2021 RFP Workbook(1).xlsm","$B$19:$V$39"]
["='Property Information'!R1C2:R71C15","Property Information'!Print_Area","Property Information","$B$1:$O$71"]
["='Property Information'!R28C5","PropertyInformationAdministrationDescription","2021 RFP Workbook(1).xlsm","$E$28"]
["='Property Information'!R28C7","PropertyInformationAdministrationGrossSquareFeet","2021 RFP Workbook(1).xlsm","$G$28"]
["='Property Information'!R16C5","PropertyInformationBuildingDescriptionBuildingType1","2021 RFP Workbook(1).xlsm","$E$16"]
["='Property Information'!R17C5","PropertyInformationBuildingDescriptionBuildingType2","2021 RFP Workbook(1).xlsm","$E$17"]
["='Property Information'!R18C5","PropertyInformationBuildingDescriptionBuildingType3","2021 RFP Workbook(1).xlsm","$E$18"]
["='Property Information'!R19C5","PropertyInformationBuildingDescriptionBuildingType4","2021 RFP Workbook(1).xlsm","$E$19"]
["='Property Information'!R16C9","PropertyInformationBuildingDescriptionGrossSquareFeet1","2021 RFP Workbook(1).xlsm","$I$16"]
["='Property Information'!R17C9","PropertyInformationBuildingDescriptionGrossSquareFeet2","2021 RFP Workbook(1).xlsm","$I$17"]
["='Property Information'!R18C9","PropertyInformationBuildingDescriptionGrossSquareFeet3","2021 RFP Workbook(1).xlsm","$I$18"]
["='Property Information'!R19C9","PropertyInformationBuildingDescriptionGrossSquareFeet4","2021 RFP Workbook(1).xlsm","$I$19"]
["='Property Information'!R20C9","PropertyInformationBuildingDescriptionGrossSquareFeetTotal","2021 RFP Workbook(1).xlsm","$I$20"]
["='Property Information'!R16C2","PropertyInformationBuildingDescriptionHousingSpace1","2021 RFP Workbook(1).xlsm","$B$16"]
["='Property Information'!R17C2","PropertyInformationBuildingDescriptionHousingSpace2","2021 RFP Workbook(1).xlsm","$B$17"]
["='Property Information'!R18C2","PropertyInformationBuildingDescriptionHousingSpace3","2021 RFP Workbook(1).xlsm","$B$18"]
["='Property Information'!R19C2","PropertyInformationBuildingDescriptionHousingSpace4","2021 RFP Workbook(1).xlsm","$B$19"]
["='Property Information'!R16C6","PropertyInformationBuildingDescriptionNumberResidential1","2021 RFP Workbook(1).xlsm","$F$16"]
["='Property Information'!R17C6","PropertyInformationBuildingDescriptionNumberResidential2","2021 RFP Workbook(1).xlsm","$F$17"]
["='Property Information'!R18C6","PropertyInformationBuildingDescriptionNumberResidential3","2021 RFP Workbook(1).xlsm","$F$18"]
["='Property Information'!R19C6","PropertyInformationBuildingDescriptionNumberResidential4","2021 RFP Workbook(1).xlsm","$F$19"]
["='Property Information'!R20C6","PropertyInformationBuildingDescriptionNumberResidentialTotal","2021 RFP Workbook(1).xlsm","$F$20"]
["='Property Information'!R16C7","PropertyInformationBuildingDescriptionNumberStories1","2021 RFP Workbook(1).xlsm","$G$16"]
["='Property Information'!R17C7","PropertyInformationBuildingDescriptionNumberStories2","2021 RFP Workbook(1).xlsm","$G$17"]
["='Property Information'!R18C7","PropertyInformationBuildingDescriptionNumberStories3","2021 RFP Workbook(1).xlsm","$G$18"]
["='Property Information'!R19C7","PropertyInformationBuildingDescriptionNumberStories4","2021 RFP Workbook(1).xlsm","$G$19"]
["='Property Information'!R20C7","PropertyInformationBuildingDescriptionNumberStoriesTotal","2021 RFP Workbook(1).xlsm","$G$20"]
["='Property Information'!R16C8","PropertyInformationBuildingDescriptionNumberUnits1","2021 RFP Workbook(1).xlsm","$H$16"]
["='Property Information'!R17C8","PropertyInformationBuildingDescriptionNumberUnits2","2021 RFP Workbook(1).xlsm","$H$17"]
["='Property Information'!R18C8","PropertyInformationBuildingDescriptionNumberUnits3","2021 RFP Workbook(1).xlsm","$H$18"]
["='Property Information'!R19C8","PropertyInformationBuildingDescriptionNumberUnits4","2021 RFP Workbook(1).xlsm","$H$19"]
["='Property Information'!R20C8","PropertyInformationBuildingDescriptionNumberUnitsTotal","2021 RFP Workbook(1).xlsm","$H$20"]
["='Property Information'!R29C5","PropertyInformationCommercialDescription","2021 RFP Workbook(1).xlsm","$E$29"]
["='Property Information'!R29C7","PropertyInformationCommercialGrossSquareFeet","2021 RFP Workbook(1).xlsm","$G$29"]
["='Property Information'!R35C7","PropertyInformationCommercialKitchenGrossSquareFeet","2021 RFP Workbook(1).xlsm","$G$35"]
["='Property Information'!R33C7","PropertyInformationCommunityServiceFacilityGrossSquareFeet","2021 RFP Workbook(1).xlsm","$G$33"]
["='Property Information'!R31C7","PropertyInformationCommunitySpaceGrossSquareFeet","2021 RFP Workbook(1).xlsm","$G$31"]
["='Property Information'!R23C8","PropertyInformationCoveredParkingGrossSquareFeet","2021 RFP Workbook(1).xlsm","$H$23"]
["='Property Information'!R23C6","PropertyInformationCoveredParkingSpaces","2021 RFP Workbook(1).xlsm","$F$23"]
["='Property Information'!R23C7","PropertyInformationCoveredParkingSpacesPerUnitNumber","2021 RFP Workbook(1).xlsm","$G$23"]
["='Property Information'!R7C5","PropertyInformationDensity","2021 RFP Workbook(1).xlsm","$E$7"]
["='Property Information'!R57C6:R60C6","PropertyInformationExistingFederalSubsidiesExpirationDate","2021 RFP Workbook(1).xlsm","$F$57:$F$60"]
["='Property Information'!R57C7","PropertyInformationExistingFederalSubsidyAtRiskOfLoss1","2021 RFP Workbook(1).xlsm","$G$57"]
["='Property Information'!R58C7","PropertyInformationExistingFederalSubsidyAtRiskOfLoss2","2021 RFP Workbook(1).xlsm","$G$58"]
["='Property Information'!R59C7","PropertyInformationExistingFederalSubsidyAtRiskOfLoss3","2021 RFP Workbook(1).xlsm","$G$59"]
["='Property Information'!R60C7","PropertyInformationExistingFederalSubsidyAtRiskOfLoss4","2021 RFP Workbook(1).xlsm","$G$60"]
["='Property Information'!R57C2","PropertyInformationExistingFederalSubsidyDescription1","2021 RFP Workbook(1).xlsm","$B$57"]
["='Property Information'!R58C2","PropertyInformationExistingFederalSubsidyDescription2","2021 RFP Workbook(1).xlsm","$B$58"]
["='Property Information'!R59C2","PropertyInformationExistingFederalSubsidyDescription3","2021 RFP Workbook(1).xlsm","$B$59"]
["='Property Information'!R60C2","PropertyInformationExistingFederalSubsidyDescription4","2021 RFP Workbook(1).xlsm","$B$60"]
["='Property Information'!R57C6","PropertyInformationExistingFederalSubsidyExpirationDate1","2021 RFP Workbook(1).xlsm","$F$57"]
["='Property Information'!R58C6","PropertyInformationExistingFederalSubsidyExpirationDate2","2021 RFP Workbook(1).xlsm","$F$58"]
["='Property Information'!R59C6","PropertyInformationExistingFederalSubsidyExpirationDate3","2021 RFP Workbook(1).xlsm","$F$59"]
["='Property Information'!R60C6","PropertyInformationExistingFederalSubsidyExpirationDate4","2021 RFP Workbook(1).xlsm","$F$60"]
["='Property Information'!R57C5","PropertyInformationExistingFederalSubsidyNumberOfUnits1","2021 RFP Workbook(1).xlsm","$E$57"]
["='Property Information'!R58C5","PropertyInformationExistingFederalSubsidyNumberOfUnits2","2021 RFP Workbook(1).xlsm","$E$58"]
["='Property Information'!R59C5","PropertyInformationExistingFederalSubsidyNumberOfUnits3","2021 RFP Workbook(1).xlsm","$E$59"]
["='Property Information'!R60C5","PropertyInformationExistingFederalSubsidyNumberOfUnits4","2021 RFP Workbook(1).xlsm","$E$60"]
["='Property Information'!R46C9","PropertyInformationExistingIndebtednessDateOfUnpaidBalance1","2021 RFP Workbook(1).xlsm","$I$46"]
["='Property Information'!R47C9","PropertyInformationExistingIndebtednessDateOfUnpaidBalance2","2021 RFP Workbook(1).xlsm","$I$47"]
["='Property Information'!R48C9","PropertyInformationExistingIndebtednessDateOfUnpaidBalance3","2021 RFP Workbook(1).xlsm","$I$48"]
["='Property Information'!R49C9","PropertyInformationExistingIndebtednessDateOfUnpaidBalance4","2021 RFP Workbook(1).xlsm","$I$49"]
["='Property Information'!R50C9","PropertyInformationExistingIndebtednessDateOfUnpaidBalance5","2021 RFP Workbook(1).xlsm","$I$50"]
["='Property Information'!R51C9","PropertyInformationExistingIndebtednessDateOfUnpaidBalance6","2021 RFP Workbook(1).xlsm","$I$51"]
["='Property Information'!R52C9","PropertyInformationExistingIndebtednessDateOfUnpaidBalance7","2021 RFP Workbook(1).xlsm","$I$52"]
["='Property Information'!R46C14","PropertyInformationExistingIndebtednessIncomeLimits1","2021 RFP Workbook(1).xlsm","$N$46"]
["='Property Information'!R47C14","PropertyInformationExistingIndebtednessIncomeLimits2","2021 RFP Workbook(1).xlsm","$N$47"]
["='Property Information'!R48C14","PropertyInformationExistingIndebtednessIncomeLimits3","2021 RFP Workbook(1).xlsm","$N$48"]
["='Property Information'!R49C14","PropertyInformationExistingIndebtednessIncomeLimits4","2021 RFP Workbook(1).xlsm","$N$49"]
["='Property Information'!R50C14","PropertyInformationExistingIndebtednessIncomeLimits5","2021 RFP Workbook(1).xlsm","$N$50"]
["='Property Information'!R51C14","PropertyInformationExistingIndebtednessIncomeLimits6","2021 RFP Workbook(1).xlsm","$N$51"]
["='Property Information'!R52C14","PropertyInformationExistingIndebtednessIncomeLimits7","2021 RFP Workbook(1).xlsm","$N$52"]
["='Property Information'!R46C2","PropertyInformationExistingIndebtednessLenders1","2021 RFP Workbook(1).xlsm","$B$46"]
["='Property Information'!R47C2","PropertyInformationExistingIndebtednessLenders2","2021 RFP Workbook(1).xlsm","$B$47"]
["='Property Information'!R48C2","PropertyInformationExistingIndebtednessLenders3","2021 RFP Workbook(1).xlsm","$B$48"]
["='Property Information'!R50C2","PropertyInformationExistingIndebtednessLenders5","2021 RFP Workbook(1).xlsm","$B$50"]
["='Property Information'!R52C2","PropertyInformationExistingIndebtednessLenders7","2021 RFP Workbook(1).xlsm","$B$52"]
["='Property Information'!R46C5","PropertyInformationExistingIndebtednessLoanAmount1","2021 RFP Workbook(1).xlsm","$E$46"]
["='Property Information'!R47C5","PropertyInformationExistingIndebtednessLoanAmount2","2021 RFP Workbook(1).xlsm","$E$47"]
["='Property Information'!R48C5","PropertyInformationExistingIndebtednessLoanAmount3","2021 RFP Workbook(1).xlsm","$E$48"]
["='Property Information'!R49C5","PropertyInformationExistingIndebtednessLoanAmount4","2021 RFP Workbook(1).xlsm","$E$49"]
["='Property Information'!R50C5","PropertyInformationExistingIndebtednessLoanAmount5","2021 RFP Workbook(1).xlsm","$E$50"]
["='Property Information'!R51C5","PropertyInformationExistingIndebtednessLoanAmount6","2021 RFP Workbook(1).xlsm","$E$51"]
["='Property Information'!R52C5","PropertyInformationExistingIndebtednessLoanAmount7","2021 RFP Workbook(1).xlsm","$E$52"]
["='Property Information'!R53C5","PropertyInformationExistingIndebtednessLoanAmountTotal","2021 RFP Workbook(1).xlsm","$E$53"]
["='Property Information'!R46C6","PropertyInformationExistingIndebtednessLoanInterestRate1","2021 RFP Workbook(1).xlsm","$F$46"]
["='Property Information'!R47C6","PropertyInformationExistingIndebtednessLoanInterestRate2","2021 RFP Workbook(1).xlsm","$F$47"]
["='Property Information'!R48C6","PropertyInformationExistingIndebtednessLoanInterestRate3","2021 RFP Workbook(1).xlsm","$F$48"]
["='Property Information'!R49C6","PropertyInformationExistingIndebtednessLoanInterestRate4","2021 RFP Workbook(1).xlsm","$F$49"]
["='Property Information'!R50C6","PropertyInformationExistingIndebtednessLoanInterestRate5","2021 RFP Workbook(1).xlsm","$F$50"]
["='Property Information'!R51C6","PropertyInformationExistingIndebtednessLoanInterestRate6","2021 RFP Workbook(1).xlsm","$F$51"]
["='Property Information'!R52C6","PropertyInformationExistingIndebtednessLoanInterestRate7","2021 RFP Workbook(1).xlsm","$F$52"]
["='Property Information'!R46C7","PropertyInformationExistingIndebtednessLoanTerm1","2021 RFP Workbook(1).xlsm","$G$46"]
["='Property Information'!R47C7","PropertyInformationExistingIndebtednessLoanTerm2","2021 RFP Workbook(1).xlsm","$G$47"]
["='Property Information'!R48C7","PropertyInformationExistingIndebtednessLoanTerm3","2021 RFP Workbook(1).xlsm","$G$48"]
["='Property Information'!R49C7","PropertyInformationExistingIndebtednessLoanTerm4","2021 RFP Workbook(1).xlsm","$G$49"]
["='Property Information'!R50C7","PropertyInformationExistingIndebtednessLoanTerm5","2021 RFP Workbook(1).xlsm","$G$50"]
["='Property Information'!R51C7","PropertyInformationExistingIndebtednessLoanTerm6","2021 RFP Workbook(1).xlsm","$G$51"]
["='Property Information'!R52C7","PropertyInformationExistingIndebtednessLoanTerm7","2021 RFP Workbook(1).xlsm","$G$52"]
["='Property Information'!R46C13","PropertyInformationExistingIndebtednessLoanWillBePaidOff1","2021 RFP Workbook(1).xlsm","$M$46"]
["='Property Information'!R47C13","PropertyInformationExistingIndebtednessLoanWillBePaidOff2","2021 RFP Workbook(1).xlsm","$M$47"]
["='Property Information'!R48C13","PropertyInformationExistingIndebtednessLoanWillBePaidOff3","2021 RFP Workbook(1).xlsm","$M$48"]
["='Property Information'!R49C13","PropertyInformationExistingIndebtednessLoanWillBePaidOff4","2021 RFP Workbook(1).xlsm","$M$49"]
["='Property Information'!R50C13","PropertyInformationExistingIndebtednessLoanWillBePaidOff5","2021 RFP Workbook(1).xlsm","$M$50"]
["='Property Information'!R51C13","PropertyInformationExistingIndebtednessLoanWillBePaidOff6","2021 RFP Workbook(1).xlsm","$M$51"]
["='Property Information'!R52C13","PropertyInformationExistingIndebtednessLoanWillBePaidOff7","2021 RFP Workbook(1).xlsm","$M$52"]
["='Property Information'!R46C10","PropertyInformationExistingIndebtednessMaturityDate1","2021 RFP Workbook(1).xlsm","$J$46"]
["='Property Information'!R47C10","PropertyInformationExistingIndebtednessMaturityDate2","2021 RFP Workbook(1).xlsm","$J$47"]
["='Property Information'!R48C10","PropertyInformationExistingIndebtednessMaturityDate3","2021 RFP Workbook(1).xlsm","$J$48"]
["='Property Information'!R49C10","PropertyInformationExistingIndebtednessMaturityDate4","2021 RFP Workbook(1).xlsm","$J$49"]
["='Property Information'!R50C10","PropertyInformationExistingIndebtednessMaturityDate5","2021 RFP Workbook(1).xlsm","$J$50"]
["='Property Information'!R51C10","PropertyInformationExistingIndebtednessMaturityDate6","2021 RFP Workbook(1).xlsm","$J$51"]
["='Property Information'!R52C10","PropertyInformationExistingIndebtednessMaturityDate7","2021 RFP Workbook(1).xlsm","$J$52"]
["='Property Information'!R46C10:R52C10","PropertyInformationExistingIndebtednessMaturityDates","2021 RFP Workbook(1).xlsm","$J$46:$J$52"]
["='Property Information'!R46C11","PropertyInformationExistingIndebtednessNumberRestrictedUnits1","2021 RFP Workbook(1).xlsm","$K$46"]
["='Property Information'!R47C11","PropertyInformationExistingIndebtednessNumberRestrictedUnits2","2021 RFP Workbook(1).xlsm","$K$47"]
["='Property Information'!R48C11","PropertyInformationExistingIndebtednessNumberRestrictedUnits3","2021 RFP Workbook(1).xlsm","$K$48"]
["='Property Information'!R49C11","PropertyInformationExistingIndebtednessNumberRestrictedUnits4","2021 RFP Workbook(1).xlsm","$K$49"]
["='Property Information'!R50C11","PropertyInformationExistingIndebtednessNumberRestrictedUnits5","2021 RFP Workbook(1).xlsm","$K$50"]
["='Property Information'!R51C11","PropertyInformationExistingIndebtednessNumberRestrictedUnits6","2021 RFP Workbook(1).xlsm","$K$51"]
["='Property Information'!R52C11","PropertyInformationExistingIndebtednessNumberRestrictedUnits7","2021 RFP Workbook(1).xlsm","$K$52"]
["='Property Information'!R46C15","PropertyInformationExistingIndebtednessRentLimits1","2021 RFP Workbook(1).xlsm","$O$46"]
["='Property Information'!R47C15","PropertyInformationExistingIndebtednessRentLimits2","2021 RFP Workbook(1).xlsm","$O$47"]
["='Property Information'!R48C15","PropertyInformationExistingIndebtednessRentLimits3","2021 RFP Workbook(1).xlsm","$O$48"]
["='Property Information'!R49C15","PropertyInformationExistingIndebtednessRentLimits4","2021 RFP Workbook(1).xlsm","$O$49"]
["='Property Information'!R50C15","PropertyInformationExistingIndebtednessRentLimits5","2021 RFP Workbook(1).xlsm","$O$50"]
["='Property Information'!R51C15","PropertyInformationExistingIndebtednessRentLimits6","2021 RFP Workbook(1).xlsm","$O$51"]
["='Property Information'!R52C15","PropertyInformationExistingIndebtednessRentLimits7","2021 RFP Workbook(1).xlsm","$O$52"]
["='Property Information'!R46C12","PropertyInformationExistingIndebtednessRestrictedSpecialPopulations1","2021 RFP Workbook(1).xlsm","$L$46"]
["='Property Information'!R47C12","PropertyInformationExistingIndebtednessRestrictedSpecialPopulations2","2021 RFP Workbook(1).xlsm","$L$47"]
["='Property Information'!R48C12","PropertyInformationExistingIndebtednessRestrictedSpecialPopulations3","2021 RFP Workbook(1).xlsm","$L$48"]
["='Property Information'!R49C12","PropertyInformationExistingIndebtednessRestrictedSpecialPopulations4","2021 RFP Workbook(1).xlsm","$L$49"]
["='Property Information'!R50C12","PropertyInformationExistingIndebtednessRestrictedSpecialPopulations5","2021 RFP Workbook(1).xlsm","$L$50"]
["='Property Information'!R51C12","PropertyInformationExistingIndebtednessRestrictedSpecialPopulations6","2021 RFP Workbook(1).xlsm","$L$51"]
["='Property Information'!R52C12","PropertyInformationExistingIndebtednessRestrictedSpecialPopulations7","2021 RFP Workbook(1).xlsm","$L$52"]
["='Property Information'!R46C8","PropertyInformationExistingIndebtednessUnpaidBalance1","2021 RFP Workbook(1).xlsm","$H$46"]
["='Property Information'!R47C8","PropertyInformationExistingIndebtednessUnpaidBalance2","2021 RFP Workbook(1).xlsm","$H$47"]
["='Property Information'!R48C8","PropertyInformationExistingIndebtednessUnpaidBalance3","2021 RFP Workbook(1).xlsm","$H$48"]
["='Property Information'!R49C8","PropertyInformationExistingIndebtednessUnpaidBalance4","2021 RFP Workbook(1).xlsm","$H$49"]
["='Property Information'!R50C8","PropertyInformationExistingIndebtednessUnpaidBalance5","2021 RFP Workbook(1).xlsm","$H$50"]
["='Property Information'!R51C8","PropertyInformationExistingIndebtednessUnpaidBalance6","2021 RFP Workbook(1).xlsm","$H$51"]
["='Property Information'!R52C8","PropertyInformationExistingIndebtednessUnpaidBalance7","2021 RFP Workbook(1).xlsm","$H$52"]
["='Property Information'!R53C8","PropertyInformationExistingIndebtednessUnpaidBalanceTotal","2021 RFP Workbook(1).xlsm","$H$53"]
["='Property Information'!R64C7:R68C7","PropertyInformationExistingStateLocalSubsidiesExpirationDate","2021 RFP Workbook(1).xlsm","$G$64:$G$68"]
["='Property Information'!R64C2","PropertyInformationExistingStateLocalSubsidyDescription1","2021 RFP Workbook(1).xlsm","$B$64"]
["='Property Information'!R65C2","PropertyInformationExistingStateLocalSubsidyDescription2","2021 RFP Workbook(1).xlsm","$B$65"]
["='Property Information'!R66C2","PropertyInformationExistingStateLocalSubsidyDescription3","2021 RFP Workbook(1).xlsm","$B$66"]
["='Property Information'!R67C2","PropertyInformationExistingStateLocalSubsidyDescription4","2021 RFP Workbook(1).xlsm","$B$67"]
["='Property Information'!R68C2","PropertyInformationExistingStateLocalSubsidyDescription5","2021 RFP Workbook(1).xlsm","$B$68"]
["='Property Information'!R64C7","PropertyInformationExistingStateLocalSubsidyExpirationDate1","2021 RFP Workbook(1).xlsm","$G$64"]
["='Property Information'!R65C7","PropertyInformationExistingStateLocalSubsidyExpirationDate2","2021 RFP Workbook(1).xlsm","$G$65"]
["='Property Information'!R66C7","PropertyInformationExistingStateLocalSubsidyExpirationDate3","2021 RFP Workbook(1).xlsm","$G$66"]
["='Property Information'!R67C7","PropertyInformationExistingStateLocalSubsidyExpirationDate4","2021 RFP Workbook(1).xlsm","$G$67"]
["='Property Information'!R68C7","PropertyInformationExistingStateLocalSubsidyExpirationDate5","2021 RFP Workbook(1).xlsm","$G$68"]
["='Property Information'!R64C6","PropertyInformationExistingStateLocalSubsidyNumberOfUnits1","2021 RFP Workbook(1).xlsm","$F$64"]
["='Property Information'!R65C6","PropertyInformationExistingStateLocalSubsidyNumberOfUnits2","2021 RFP Workbook(1).xlsm","$F$65"]
["='Property Information'!R66C6","PropertyInformationExistingStateLocalSubsidyNumberOfUnits3","2021 RFP Workbook(1).xlsm","$F$66"]
["='Property Information'!R67C6","PropertyInformationExistingStateLocalSubsidyNumberOfUnits4","2021 RFP Workbook(1).xlsm","$F$67"]
["='Property Information'!R68C6","PropertyInformationExistingStateLocalSubsidyNumberOfUnits5","2021 RFP Workbook(1).xlsm","$F$68"]
["='Property Information'!R64C8","PropertyInformationExistingStateLocalSubsidyOther1","2021 RFP Workbook(1).xlsm","$H$64"]
["='Property Information'!R65C8","PropertyInformationExistingStateLocalSubsidyOther2","2021 RFP Workbook(1).xlsm","$H$65"]
["='Property Information'!R66C8","PropertyInformationExistingStateLocalSubsidyOther3","2021 RFP Workbook(1).xlsm","$H$66"]
["='Property Information'!R67C8","PropertyInformationExistingStateLocalSubsidyOther4","2021 RFP Workbook(1).xlsm","$H$67"]
["='Property Information'!R68C8","PropertyInformationExistingStateLocalSubsidyOther5","2021 RFP Workbook(1).xlsm","$H$68"]
["='Property Information'!R64C5","PropertyInformationExistingStateLocalSubsidyType1","2021 RFP Workbook(1).xlsm","$E$64"]
["='Property Information'!R65C5","PropertyInformationExistingStateLocalSubsidyType2","2021 RFP Workbook(1).xlsm","$E$65"]
["='Property Information'!R66C5","PropertyInformationExistingStateLocalSubsidyType3","2021 RFP Workbook(1).xlsm","$E$66"]
["='Property Information'!R67C5","PropertyInformationExistingStateLocalSubsidyType4","2021 RFP Workbook(1).xlsm","$E$67"]
["='Property Information'!R68C5","PropertyInformationExistingStateLocalSubsidyType5","2021 RFP Workbook(1).xlsm","$E$68"]
["='Property Information'!R41C12","PropertyInformationHasBeenAcquiredFromRelatedPartyDate","2021 RFP Workbook(1).xlsm","$L$41"]
["='Property Information'!R41C14","PropertyInformationHasBeenAcquiredFromRelatedPartySalePrice","2021 RFP Workbook(1).xlsm","$N$41"]
["='Property Information'!R42C12","PropertyInformationHasBeenAcquiredFromUnRelatedPartyDate","2021 RFP Workbook(1).xlsm","$L$42"]
["='Property Information'!R42C14","PropertyInformationHasBeenAcquiredFromUnRelatedPartySalePrice","2021 RFP Workbook(1).xlsm","$N$42"]
["='Property Information'!R49C2","PropertyInformationIndebtednessLenders4","2021 RFP Workbook(1).xlsm","$B$49"]
["='Property Information'!R51C2","PropertyInformationIndebtednessLenders6","2021 RFP Workbook(1).xlsm","$B$51"]
["='Property Information'!R37C7","PropertyInformationNonHousingSpaceTotalGrossSquareFeet","2021 RFP Workbook(1).xlsm","$G$37"]
["='Property Information'!R34C7","PropertyInformationOfficeGrossSquareFeet","2021 RFP Workbook(1).xlsm","$G$34"]
["='Property Information'!R36C7","PropertyInformationOtherGrossSquareFeet","2021 RFP Workbook(1).xlsm","$G$36"]
["='Property Information'!R23C5","PropertyInformationParkingCoveredType","2021 RFP Workbook(1).xlsm","$E$23"]
["='Property Information'!R25C8","PropertyInformationParkingSpacesGrossSquareFeetTotal","2021 RFP Workbook(1).xlsm","$H$25"]
["='Property Information'!R25C7","PropertyInformationParkingSpacesPerUnitTotal","2021 RFP Workbook(1).xlsm","$G$25"]
["='Property Information'!R4C17:R123C41","PropertyInformationScratchPad","2021 RFP Workbook(1).xlsm","$Q$4:$AO$123"]
["='Property Information'!R5C5","PropertyInformationSiteDescriptionAcres","2021 RFP Workbook(1).xlsm","$E$5"]
["='Property Information'!R30C7","PropertyInformationStorageLockersGrossSquareFeet","2021 RFP Workbook(1).xlsm","$G$30"]
["='Property Information'!R24C6","PropertyInformationSurfaceParkingSpaces","2021 RFP Workbook(1).xlsm","$F$24"]
["='Property Information'!R24C7","PropertyInformationSurfaceParkingSpacesPerUnitNumber","2021 RFP Workbook(1).xlsm","$G$24"]
["='Property Information'!R32C7","PropertyInformationSwimmingPoolGrossSquareFeet","2021 RFP Workbook(1).xlsm","$G$32"]
["='Property Information'!R25C6","PropertyInformationTotalParkingSpaces","2021 RFP Workbook(1).xlsm","$F$25"]
["='Property Information'!R6C5","PropertyInformationTotalSiteAreaSquareFootage","2021 RFP Workbook(1).xlsm","$E$6"]
[]
["=Controls!R10C68","Controls_HousingIncomeRentGridLIHTCCheckboxValue7","2021 RFP Workbook(1).xlsm","$BP$10"]
["=Controls!R10C69","Controls_HousingIncomeRentGridHOMECheckboxValue7","2021 RFP Workbook(1).xlsm","$BQ$10"]
["=Controls!R10C70","Controls_HousingIncomeRentGridNHTFCheckboxValue7","2021 RFP Workbook(1).xlsm","$BR$10"]
["=Controls!R10C71","Controls_HousingIncomeRentGridLTHCheckboxValue7","2021 RFP Workbook(1).xlsm","$BS$10"]
["=Controls!R10C72","Controls_HousingIncomeRentGridPWDCheckboxValue7","2021 RFP Workbook(1).xlsm","$BT$10"]
["=Controls!R10C73","Controls_HousingIncomeRentGridHIBSeniorCheckboxValue7","2021 RFP Workbook(1).xlsm","$BU$10"]
["=Controls!R10C74","Controls_HousingIncomeRentGridOpSubsCheckboxValue7","2021 RFP Workbook(1).xlsm","$BV$10"]
["=Controls!R10C75","Controls_HousingIncomeRentGridRentAsstCheckboxValue7","2021 RFP Workbook(1).xlsm","$BW$10"]
["=Controls!R10C76","Controls_HousingIncomeRentGridCommonSpace7","2021 RFP Workbook(1).xlsm","$BX$10"]
["=Controls!R11C68","Controls_HousingIncomeRentGridLIHTCCheckboxValue8","2021 RFP Workbook(1).xlsm","$BP$11"]
["=Controls!R11C69","Controls_HousingIncomeRentGridHOMECheckboxValue8","2021 RFP Workbook(1).xlsm","$BQ$11"]
["=Controls!R11C70","Controls_HousingIncomeRentGridNHTFCheckboxValue8","2021 RFP Workbook(1).xlsm","$BR$11"]
["=Controls!R11C71","Controls_HousingIncomeRentGridLTHCheckboxValue8","2021 RFP Workbook(1).xlsm","$BS$11"]
["=Controls!R11C72","Controls_HousingIncomeRentGridPWDCheckboxValue8","2021 RFP Workbook(1).xlsm","$BT$11"]
["=Controls!R11C73","Controls_HousingIncomeRentGridHIBSeniorCheckboxValue8","2021 RFP Workbook(1).xlsm","$BU$11"]
["=Controls!R11C74","Controls_HousingIncomeRentGridOpSubsCheckboxValue8","2021 RFP Workbook(1).xlsm","$BV$11"]
["=Controls!R11C75","Controls_HousingIncomeRentGridRentAsstCheckboxValue8","2021 RFP Workbook(1).xlsm","$BW$11"]
["=Controls!R11C76","Controls_HousingIncomeRentGridCommonSpace8","2021 RFP Workbook(1).xlsm","$BX$11"]
["=Controls!R12C68","Controls_HousingIncomeRentGridLIHTCCheckboxValue9","2021 RFP Workbook(1).xlsm","$BP$12"]
["=Controls!R12C69","Controls_HousingIncomeRentGridHOMECheckboxValue9","2021 RFP Workbook(1).xlsm","$BQ$12"]
["=Controls!R12C70","Controls_HousingIncomeRentGridNHTFCheckboxValue9","2021 RFP Workbook(1).xlsm","$BR$12"]
["=Controls!R12C71","Controls_HousingIncomeRentGridLTHCheckboxValue9","2021 RFP Workbook(1).xlsm","$BS$12"]
["=Controls!R12C72","Controls_HousingIncomeRentGridPWDCheckboxValue9","2021 RFP Workbook(1).xlsm","$BT$12"]
["=Controls!R12C73","Controls_HousingIncomeRentGridHIBSeniorCheckboxValue9","2021 RFP Workbook(1).xlsm","$BU$12"]
["=Controls!R12C74","Controls_HousingIncomeRentGridOpSubsCheckboxValue9","2021 RFP Workbook(1).xlsm","$BV$12"]
["=Controls!R12C75","Controls_HousingIncomeRentGridRentAsstCheckboxValue9","2021 RFP Workbook(1).xlsm","$BW$12"]
["=Controls!R12C76","Controls_HousingIncomeRentGridCommonSpace9","2021 RFP Workbook(1).xlsm","$BX$12"]
["=Controls!R13C68","Controls_HousingIncomeRentGridLIHTCCheckboxValue10","2021 RFP Workbook(1).xlsm","$BP$13"]
["=Controls!R13C69","Controls_HousingIncomeRentGridHOMECheckboxValue10","2021 RFP Workbook(1).xlsm","$BQ$13"]
["=Controls!R13C70","Controls_HousingIncomeRentGridNHTFCheckboxValue10","2021 RFP Workbook(1).xlsm","$BR$13"]
["=Controls!R13C71","Controls_HousingIncomeRentGridLTHCheckboxValue10","2021 RFP Workbook(1).xlsm","$BS$13"]
["=Controls!R13C72","Controls_HousingIncomeRentGridPWDCheckboxValue10","2021 RFP Workbook(1).xlsm","$BT$13"]
["=Controls!R13C73","Controls_HousingIncomeRentGridHIBSeniorCheckboxValue10","2021 RFP Workbook(1).xlsm","$BU$13"]
["=Controls!R13C74","Controls_HousingIncomeRentGridOpSubsCheckboxValue10","2021 RFP Workbook(1).xlsm","$BV$13"]
["=Controls!R13C75","Controls_HousingIncomeRentGridRentAsstCheckboxValue10","2021 RFP Workbook(1).xlsm","$BW$13"]
["=Controls!R13C76","Controls_HousingIncomeRentGridCommonSpace10","2021 RFP Workbook(1).xlsm","$BX$13"]
["=Controls!R14C68","Controls_HousingIncomeRentGridLIHTCCheckboxValue11","2021 RFP Workbook(1).xlsm","$BP$14"]
["=Controls!R14C69","Controls_HousingIncomeRentGridHOMECheckboxValue11","2021 RFP Workbook(1).xlsm","$BQ$14"]
["=Controls!R14C70","Controls_HousingIncomeRentGridNHTFCheckboxValue11","2021 RFP Workbook(1).xlsm","$BR$14"]
["=Controls!R14C71","Controls_HousingIncomeRentGridLTHCheckboxValue11","2021 RFP Workbook(1).xlsm","$BS$14"]
["=Controls!R14C72","Controls_HousingIncomeRentGridPWDCheckboxValue11","2021 RFP Workbook(1).xlsm","$BT$14"]
["=Controls!R14C73","Controls_HousingIncomeRentGridHIBSeniorCheckboxValue11","2021 RFP Workbook(1).xlsm","$BU$14"]
["=Controls!R14C74","Controls_HousingIncomeRentGridOpSubsCheckboxValue11","2021 RFP Workbook(1).xlsm","$BV$14"]
["=Controls!R14C75","Controls_HousingIncomeRentGridRentAsstCheckboxValue11","2021 RFP Workbook(1).xlsm","$BW$14"]
["=Controls!R14C76","Controls_HousingIncomeRentGridCommonSpace11","2021 RFP Workbook(1).xlsm","$BX$14"]
["=Controls!R15C68","Controls_HousingIncomeRentGridLIHTCCheckboxValue12","2021 RFP Workbook(1).xlsm","$BP$15"]
["=Controls!R15C69","Controls_HousingIncomeRentGridHOMECheckboxValue12","2021 RFP Workbook(1).xlsm","$BQ$15"]
["=Controls!R15C70","Controls_HousingIncomeRentGridNHTFCheckboxValue12","2021 RFP Workbook(1).xlsm","$BR$15"]
["=Controls!R15C71","Controls_HousingIncomeRentGridLTHCheckboxValue12","2021 RFP Workbook(1).xlsm","$BS$15"]
["=Controls!R15C72","Controls_HousingIncomeRentGridPWDCheckboxValue12","2021 RFP Workbook(1).xlsm","$BT$15"]
["=Controls!R15C73","Controls_HousingIncomeRentGridHIBSeniorCheckboxValue12","2021 RFP Workbook(1).xlsm","$BU$15"]
["=Controls!R15C74","Controls_HousingIncomeRentGridOpSubsCheckboxValue12","2021 RFP Workbook(1).xlsm","$BV$15"]
["=Controls!R15C75","Controls_HousingIncomeRentGridRentAsstCheckboxValue12","2021 RFP Workbook(1).xlsm","$BW$15"]
["=Controls!R15C76","Controls_HousingIncomeRentGridCommonSpace12","2021 RFP Workbook(1).xlsm","$BX$15"]
["=Controls!R16C68","Controls_HousingIncomeRentGridLIHTCCheckboxValue13","2021 RFP Workbook(1).xlsm","$BP$16"]
["=Controls!R16C69","Controls_HousingIncomeRentGridHOMECheckboxValue13","2021 RFP Workbook(1).xlsm","$BQ$16"]
["=Controls!R16C70","Controls_HousingIncomeRentGridNHTFCheckboxValue13","2021 RFP Workbook(1).xlsm","$BR$16"]
["=Controls!R16C71","Controls_HousingIncomeRentGridLTHCheckboxValue13","2021 RFP Workbook(1).xlsm","$BS$16"]
["=Controls!R16C72","Controls_HousingIncomeRentGridPWDCheckboxValue13","2021 RFP Workbook(1).xlsm","$BT$16"]
["=Controls!R16C73","Controls_HousingIncomeRentGridHIBSeniorCheckboxValue13","2021 RFP Workbook(1).xlsm","$BU$16"]
["=Controls!R16C74","Controls_HousingIncomeRentGridOpSubsCheckboxValue13","2021 RFP Workbook(1).xlsm","$BV$16"]
["=Controls!R16C75","Controls_HousingIncomeRentGridRentAsstCheckboxValue13","2021 RFP Workbook(1).xlsm","$BW$16"]
["=Controls!R16C76","Controls_HousingIncomeRentGridCommonSpace13","2021 RFP Workbook(1).xlsm","$BX$16"]
["=Controls!R17C68","Controls_HousingIncomeRentGridLIHTCCheckboxValue14","2021 RFP Workbook(1).xlsm","$BP$17"]
["=Controls!R17C69","Controls_HousingIncomeRentGridHOMECheckboxValue14","2021 RFP Workbook(1).xlsm","$BQ$17"]
["=Controls!R17C70","Controls_HousingIncomeRentGridNHTFCheckboxValue14","2021 RFP Workbook(1).xlsm","$BR$17"]
["=Controls!R17C71","Controls_HousingIncomeRentGridLTHCheckboxValue14","2021 RFP Workbook(1).xlsm","$BS$17"]
["=Controls!R17C72","Controls_HousingIncomeRentGridPWDCheckboxValue14","2021 RFP Workbook(1).xlsm","$BT$17"]
["=Controls!R17C73","Controls_HousingIncomeRentGridHIBSeniorCheckboxValue14","2021 RFP Workbook(1).xlsm","$BU$17"]
["=Controls!R17C74","Controls_HousingIncomeRentGridOpSubsCheckboxValue14","2021 RFP Workbook(1).xlsm","$BV$17"]
["=Controls!R17C75","Controls_HousingIncomeRentGridRentAsstCheckboxValue14","2021 RFP Workbook(1).xlsm","$BW$17"]
["=Controls!R17C76","Controls_HousingIncomeRentGridCommonSpace14","2021 RFP Workbook(1).xlsm","$BX$17"]
["=Controls!R18C68","Controls_HousingIncomeRentGridLIHTCCheckboxValue15","2021 RFP Workbook(1).xlsm","$BP$18"]
["=Controls!R18C69","Controls_HousingIncomeRentGridHOMECheckboxValue15","2021 RFP Workbook(1).xlsm","$BQ$18"]
["=Controls!R18C70","Controls_HousingIncomeRentGridNHTFCheckboxValue15","2021 RFP Workbook(1).xlsm","$BR$18"]
["=Controls!R18C71","Controls_HousingIncomeRentGridLTHCheckboxValue15","2021 RFP Workbook(1).xlsm","$BS$18"]
["=Controls!R18C72","Controls_HousingIncomeRentGridPWDCheckboxValue15","2021 RFP Workbook(1).xlsm","$BT$18"]
["=Controls!R18C73","Controls_HousingIncomeRentGridHIBSeniorCheckboxValue15","2021 RFP Workbook(1).xlsm","$BU$18"]
["=Controls!R18C74","Controls_HousingIncomeRentGridOpSubsCheckboxValue15","2021 RFP Workbook(1).xlsm","$BV$18"]
["=Controls!R18C75","Controls_HousingIncomeRentGridRentAsstCheckboxValue15","2021 RFP Workbook(1).xlsm","$BW$18"]
["=Controls!R18C76","Controls_HousingIncomeRentGridCommonSpace15","2021 RFP Workbook(1).xlsm","$BX$18"]
["=Controls!R19C68","Controls_HousingIncomeRentGridLIHTCCheckboxValue16","2021 RFP Workbook(1).xlsm","$BP$19"]
["=Controls!R19C69","Controls_HousingIncomeRentGridHOMECheckboxValue16","2021 RFP Workbook(1).xlsm","$BQ$19"]
["=Controls!R19C70","Controls_HousingIncomeRentGridNHTFCheckboxValue16","2021 RFP Workbook(1).xlsm","$BR$19"]
["=Controls!R19C71","Controls_HousingIncomeRentGridLTHCheckboxValue16","2021 RFP Workbook(1).xlsm","$BS$19"]
["=Controls!R19C72","Controls_HousingIncomeRentGridPWDCheckboxValue16","2021 RFP Workbook(1).xlsm","$BT$19"]
["=Controls!R19C73","Controls_HousingIncomeRentGridHIBSeniorCheckboxValue16","2021 RFP Workbook(1).xlsm","$BU$19"]
["=Controls!R19C74","Controls_HousingIncomeRentGridOpSubsCheckboxValue16","2021 RFP Workbook(1).xlsm","$BV$19"]
["=Controls!R19C75","Controls_HousingIncomeRentGridRentAsstCheckboxValue16","2021 RFP Workbook(1).xlsm","$BW$19"]
["=Controls!R19C76","Controls_HousingIncomeRentGridCommonSpace16","2021 RFP Workbook(1).xlsm","$BX$19"]
["=Controls!R20C68","Controls_HousingIncomeRentGridLIHTCCheckboxValue17","2021 RFP Workbook(1).xlsm","$BP$20"]
["=Controls!R20C69","Controls_HousingIncomeRentGridHOMECheckboxValue17","2021 RFP Workbook(1).xlsm","$BQ$20"]
["=Controls!R20C70","Controls_HousingIncomeRentGridNHTFCheckboxValue17","2021 RFP Workbook(1).xlsm","$BR$20"]
["=Controls!R20C71","Controls_HousingIncomeRentGridLTHCheckboxValue17","2021 RFP Workbook(1).xlsm","$BS$20"]
["=Controls!R20C72","Controls_HousingIncomeRentGridPWDCheckboxValue17","2021 RFP Workbook(1).xlsm","$BT$20"]
["=Controls!R20C73","Controls_HousingIncomeRentGridHIBSeniorCheckboxValue17","2021 RFP Workbook(1).xlsm","$BU$20"]
["=Controls!R20C74","Controls_HousingIncomeRentGridOpSubsCheckboxValue17","2021 RFP Workbook(1).xlsm","$BV$20"]
["=Controls!R20C75","Controls_HousingIncomeRentGridRentAsstCheckboxValue17","2021 RFP Workbook(1).xlsm","$BW$20"]
["=Controls!R20C76","Controls_HousingIncomeRentGridCommonSpace17","2021 RFP Workbook(1).xlsm","$BX$20"]
["=Controls!R21C68","Controls_HousingIncomeRentGridLIHTCCheckboxValue18","2021 RFP Workbook(1).xlsm","$BP$21"]
["=Controls!R21C69","Controls_HousingIncomeRentGridHOMECheckboxValue18","2021 RFP Workbook(1).xlsm","$BQ$21"]
["=Controls!R21C70","Controls_HousingIncomeRentGridNHTFCheckboxValue18","2021 RFP Workbook(1).xlsm","$BR$21"]
["=Controls!R21C71","Controls_HousingIncomeRentGridLTHCheckboxValue18","2021 RFP Workbook(1).xlsm","$BS$21"]
["=Controls!R21C72","Controls_HousingIncomeRentGridPWDCheckboxValue18","2021 RFP Workbook(1).xlsm","$BT$21"]
["=Controls!R21C73","Controls_HousingIncomeRentGridHIBSeniorCheckboxValue18","2021 RFP Workbook(1).xlsm","$BU$21"]
["=Controls!R21C74","Controls_HousingIncomeRentGridOpSubsCheckboxValue18","2021 RFP Workbook(1).xlsm","$BV$21"]
["=Controls!R21C75","Controls_HousingIncomeRentGridRentAsstCheckboxValue18","2021 RFP Workbook(1).xlsm","$BW$21"]
["=Controls!R21C76","Controls_HousingIncomeRentGridCommonSpace18","2021 RFP Workbook(1).xlsm","$BX$21"]
["=Controls!R22C68","Controls_HousingIncomeRentGridLIHTCCheckboxValue19","2021 RFP Workbook(1).xlsm","$BP$22"]
["=Controls!R22C69","Controls_HousingIncomeRentGridHOMECheckboxValue19","2021 RFP Workbook(1).xlsm","$BQ$22"]
["=Controls!R22C70","Controls_HousingIncomeRentGridNHTFCheckboxValue19","2021 RFP Workbook(1).xlsm","$BR$22"]
["=Controls!R22C71","Controls_HousingIncomeRentGridLTHCheckboxValue19","2021 RFP Workbook(1).xlsm","$BS$22"]
["=Controls!R22C72","Controls_HousingIncomeRentGridPWDCheckboxValue19","2021 RFP Workbook(1).xlsm","$BT$22"]
["=Controls!R22C73","Controls_HousingIncomeRentGridHIBSeniorCheckboxValue19","2021 RFP Workbook(1).xlsm","$BU$22"]
["=Controls!R22C74","Controls_HousingIncomeRentGridOpSubsCheckboxValue19","2021 RFP Workbook(1).xlsm","$BV$22"]
["=Controls!R22C75","Controls_HousingIncomeRentGridRentAsstCheckboxValue19","2021 RFP Workbook(1).xlsm","$BW$22"]
["=Controls!R22C76","Controls_HousingIncomeRentGridCommonSpace19","2021 RFP Workbook(1).xlsm","$BX$22"]
["=Controls!R23C68","Controls_HousingIncomeRentGridLIHTCCheckboxValue20","2021 RFP Workbook(1).xlsm","$BP$23"]
["=Controls!R23C69","Controls_HousingIncomeRentGridHOMECheckboxValue20","2021 RFP Workbook(1).xlsm","$BQ$23"]
["=Controls!R23C70","Controls_HousingIncomeRentGridNHTFCheckboxValue20","2021 RFP Workbook(1).xlsm","$BR$23"]
["=Controls!R23C71","Controls_HousingIncomeRentGridLTHCheckboxValue20","2021 RFP Workbook(1).xlsm","$BS$23"]
["=Controls!R23C72","Controls_HousingIncomeRentGridPWDCheckboxValue20","2021 RFP Workbook(1).xlsm","$BT$23"]
["=Controls!R23C73","Controls_HousingIncomeRentGridHIBSeniorCheckboxValue20","2021 RFP Workbook(1).xlsm","$BU$23"]
["=Controls!R23C74","Controls_HousingIncomeRentGridOpSubsCheckboxValue20","2021 RFP Workbook(1).xlsm","$BV$23"]
["=Controls!R23C75","Controls_HousingIncomeRentGridRentAsstCheckboxValue20","2021 RFP Workbook(1).xlsm","$BW$23"]
["=Controls!R23C76","Controls_HousingIncomeRentGridCommonSpace20","2021 RFP Workbook(1).xlsm","$BX$23"]
["=Controls!R24C68","Controls_HousingIncomeRentGridLIHTCCheckboxValue21","2021 RFP Workbook(1).xlsm","$BP$24"]
["=Controls!R24C69","Controls_HousingIncomeRentGridHOMECheckboxValue21","2021 RFP Workbook(1).xlsm","$BQ$24"]
["=Controls!R24C70","Controls_HousingIncomeRentGridNHTFCheckboxValue21","2021 RFP Workbook(1).xlsm","$BR$24"]
["=Controls!R24C71","Controls_HousingIncomeRentGridLTHCheckboxValue21","2021 RFP Workbook(1).xlsm","$BS$24"]
["=Controls!R24C72","Controls_HousingIncomeRentGridPWDCheckboxValue21","2021 RFP Workbook(1).xlsm","$BT$24"]
["=Controls!R24C73","Controls_HousingIncomeRentGridHIBSeniorCheckboxValue21","2021 RFP Workbook(1).xlsm","$BU$24"]
["=Controls!R24C74","Controls_HousingIncomeRentGridOpSubsCheckboxValue21","2021 RFP Workbook(1).xlsm","$BV$24"]
["=Controls!R24C75","Controls_HousingIncomeRentGridRentAsstCheckboxValue21","2021 RFP Workbook(1).xlsm","$BW$24"]
["=Controls!R24C76","Controls_HousingIncomeRentGridCommonSpace21","2021 RFP Workbook(1).xlsm","$BX$24"]
["=Controls!R4C68","Controls_HousingIncomeRentGridLIHTCCheckboxValue1","2021 RFP Workbook(1).xlsm","$BP$4"]
["=Controls!R4C68:R24C75","Controls_HousingIncomeRentGridProgramTypes","2021 RFP Workbook(1).xlsm","$BP$4:$BW$24"]
["=Controls!R4C69","Controls_HousingIncomeRentGridHOMECheckboxValue1","2021 RFP Workbook(1).xlsm","$BQ$4"]
["=Controls!R4C70","Controls_HousingIncomeRentGridNHTFCheckboxValue1","2021 RFP Workbook(1).xlsm","$BR$4"]
["=Controls!R4C71","Controls_HousingIncomeRentGridLTHCheckboxValue1","2021 RFP Workbook(1).xlsm","$BS$4"]
["=Controls!R4C72","Controls_HousingIncomeRentGridPWDCheckboxValue1","2021 RFP Workbook(1).xlsm","$BT$4"]
["=Controls!R4C73","Controls_HousingIncomeRentGridHIBSeniorCheckboxValue1","2021 RFP Workbook(1).xlsm","$BU$4"]
["=Controls!R4C74","Controls_HousingIncomeRentGridOpSubsCheckboxValue1","2021 RFP Workbook(1).xlsm","$BV$4"]
["=Controls!R4C75","Controls_HousingIncomeRentGridRentAsstCheckboxValue1","2021 RFP Workbook(1).xlsm","$BW$4"]
["=Controls!R4C76","Controls_HousingIncomeRentGridCommonSpace1","2021 RFP Workbook(1).xlsm","$BX$4"]
["=Controls!R5C68","Controls_HousingIncomeRentGridLIHTCCheckboxValue2","2021 RFP Workbook(1).xlsm","$BP$5"]
["=Controls!R5C69","Controls_HousingIncomeRentGridHOMECheckboxValue2","2021 RFP Workbook(1).xlsm","$BQ$5"]
["=Controls!R5C70","Controls_HousingIncomeRentGridNHTFCheckboxValue2","2021 RFP Workbook(1).xlsm","$BR$5"]
["=Controls!R5C71","Controls_HousingIncomeRentGridLTHCheckboxValue2","2021 RFP Workbook(1).xlsm","$BS$5"]
["=Controls!R5C72","Controls_HousingIncomeRentGridPWDCheckboxValue2","2021 RFP Workbook(1).xlsm","$BT$5"]
["=Controls!R5C73","Controls_HousingIncomeRentGridHIBSeniorCheckboxValue2","2021 RFP Workbook(1).xlsm","$BU$5"]
["=Controls!R5C74","Controls_HousingIncomeRentGridOpSubsCheckboxValue2","2021 RFP Workbook(1).xlsm","$BV$5"]
["=Controls!R5C75","Controls_HousingIncomeRentGridRentAsstCheckboxValue2","2021 RFP Workbook(1).xlsm","$BW$5"]
["=Controls!R5C76","Controls_HousingIncomeRentGridCommonSpace2","2021 RFP Workbook(1).xlsm","$BX$5"]
["=Controls!R62C34","Controls_HousingIncomeUnitRentGridTotalHTCUnits","2021 RFP Workbook(1).xlsm","$AH$62"]
["=Controls!R62C38","Controls_HousingIncomeUnitRentGridTotalHTCUnitsSqFt","2021 RFP Workbook(1).xlsm","$AL$62"]
["=Controls!R63C35","Controls_HousingIncomeUnitRentGridTotalNonHTCUnits","2021 RFP Workbook(1).xlsm","$AI$63"]
["=Controls!R63C39","Controls_HousingIncomeUnitRentGridTotalNonHTCUnitsSqFt","2021 RFP Workbook(1).xlsm","$AM$63"]
["=Controls!R6C68","Controls_HousingIncomeRentGridLIHTCCheckboxValue3","2021 RFP Workbook(1).xlsm","$BP$6"]
["=Controls!R6C69","Controls_HousingIncomeRentGridHOMECheckboxValue3","2021 RFP Workbook(1).xlsm","$BQ$6"]
["=Controls!R6C70","Controls_HousingIncomeRentGridNHTFCheckboxValue3","2021 RFP Workbook(1).xlsm","$BR$6"]
["=Controls!R6C71","Controls_HousingIncomeRentGridLTHCheckboxValue3","2021 RFP Workbook(1).xlsm","$BS$6"]
["=Controls!R6C72","Controls_HousingIncomeRentGridPWDCheckboxValue3","2021 RFP Workbook(1).xlsm","$BT$6"]
["=Controls!R6C73","Controls_HousingIncomeRentGridHIBSeniorCheckboxValue3","2021 RFP Workbook(1).xlsm","$BU$6"]
["=Controls!R6C74","Controls_HousingIncomeRentGridOpSubsCheckboxValue3","2021 RFP Workbook(1).xlsm","$BV$6"]
["=Controls!R6C75","Controls_HousingIncomeRentGridRentAsstCheckboxValue3","2021 RFP Workbook(1).xlsm","$BW$6"]
["=Controls!R6C76","Controls_HousingIncomeRentGridCommonSpace3","2021 RFP Workbook(1).xlsm","$BX$6"]
["=Controls!R73C67","Controls_HousingIncomeMRTotalUnits","2021 RFP Workbook(1).xlsm","$BO$73"]
["=Controls!R73C68","Controls_HousingIncomeHTCTotalUnits","2021 RFP Workbook(1).xlsm","$BP$73"]
["=Controls!R73C69","Controls_HousingIncomeHOMETotalUnits","2021 RFP Workbook(1).xlsm","$BQ$73"]
["=Controls!R73C70","Controls_HousingIncomeNHTFTotalUnits","2021 RFP Workbook(1).xlsm","$BR$73"]
["=Controls!R73C71","Controls_HousingIncomeLTHTotalUnits","2021 RFP Workbook(1).xlsm","$BS$73"]
["=Controls!R73C72","Controls_HousingIncomePWDTotalUnits","2021 RFP Workbook(1).xlsm","$BT$73"]
["=Controls!R73C73","Controls_HousingIncomeHIBSeniorTotalUnits","2021 RFP Workbook(1).xlsm","$BU$73"]
["=Controls!R73C75","Controls_HousingIncomeRATotalUnits","2021 RFP Workbook(1).xlsm","$BW$73"]
["=Controls!R73C76","Controls_HousingIncomeOSTotalUnits","2021 RFP Workbook(1).xlsm","$BX$73"]
["=Controls!R73C77","Controls_HousingIncomeLIHTCTotalIncomeAverage","2021 RFP Workbook(1).xlsm","$BY$73"]
["=Controls!R73C78","Controls_HousingIncomeLIHTCTotalUnitsIncomeAverage","2021 RFP Workbook(1).xlsm","$BZ$73"]
["=Controls!R7C68","Controls_HousingIncomeRentGridLIHTCCheckboxValue4","2021 RFP Workbook(1).xlsm","$BP$7"]
["=Controls!R7C69","Controls_HousingIncomeRentGridHOMECheckboxValue4","2021 RFP Workbook(1).xlsm","$BQ$7"]
["=Controls!R7C70","Controls_HousingIncomeRentGridNHTFCheckboxValue4","2021 RFP Workbook(1).xlsm","$BR$7"]
["=Controls!R7C71","Controls_HousingIncomeRentGridLTHCheckboxValue4","2021 RFP Workbook(1).xlsm","$BS$7"]
["=Controls!R7C72","Controls_HousingIncomeRentGridPWDCheckboxValue4","2021 RFP Workbook(1).xlsm","$BT$7"]
["=Controls!R7C73","Controls_HousingIncomeRentGridHIBSeniorCheckboxValue4","2021 RFP Workbook(1).xlsm","$BU$7"]
["=Controls!R7C74","Controls_HousingIncomeRentGridOpSubsCheckboxValue4","2021 RFP Workbook(1).xlsm","$BV$7"]
["=Controls!R7C75","Controls_HousingIncomeRentGridRentAsstCheckboxValue4","2021 RFP Workbook(1).xlsm","$BW$7"]
["=Controls!R7C76","Controls_HousingIncomeRentGridCommonSpace4","2021 RFP Workbook(1).xlsm","$BX$7"]
["=Controls!R8C68","Controls_HousingIncomeRentGridLIHTCCheckboxValue5","2021 RFP Workbook(1).xlsm","$BP$8"]
["=Controls!R8C69","Controls_HousingIncomeRentGridHOMECheckboxValue5","2021 RFP Workbook(1).xlsm","$BQ$8"]
["=Controls!R8C70","Controls_HousingIncomeRentGridNHTFCheckboxValue5","2021 RFP Workbook(1).xlsm","$BR$8"]
["=Controls!R8C71","Controls_HousingIncomeRentGridLTHCheckboxValue5","2021 RFP Workbook(1).xlsm","$BS$8"]
["=Controls!R8C72","Controls_HousingIncomeRentGridPWDCheckboxValue5","2021 RFP Workbook(1).xlsm","$BT$8"]
["=Controls!R8C73","Controls_HousingIncomeRentGridHIBSeniorCheckboxValue5","2021 RFP Workbook(1).xlsm","$BU$8"]
["=Controls!R8C74","Controls_HousingIncomeRentGridOpSubsCheckboxValue5","2021 RFP Workbook(1).xlsm","$BV$8"]
["=Controls!R8C75","Controls_HousingIncomeRentGridRentAsstCheckboxValue5","2021 RFP Workbook(1).xlsm","$BW$8"]
["=Controls!R8C76","Controls_HousingIncomeRentGridCommonSpace5","2021 RFP Workbook(1).xlsm","$BX$8"]
["=Controls!R9C68","Controls_HousingIncomeRentGridLIHTCCheckboxValue6","2021 RFP Workbook(1).xlsm","$BP$9"]
["=Controls!R9C69","Controls_HousingIncomeRentGridHOMECheckboxValue6","2021 RFP Workbook(1).xlsm","$BQ$9"]
["=Controls!R9C70","Controls_HousingIncomeRentGridNHTFCheckboxValue6","2021 RFP Workbook(1).xlsm","$BR$9"]
["=Controls!R9C71","Controls_HousingIncomeRentGridLTHCheckboxValue6","2021 RFP Workbook(1).xlsm","$BS$9"]
["=Controls!R9C72","Controls_HousingIncomeRentGridPWDCheckboxValue6","2021 RFP Workbook(1).xlsm","$BT$9"]
["=Controls!R9C73","Controls_HousingIncomeRentGridHIBSeniorCheckboxValue6","2021 RFP Workbook(1).xlsm","$BU$9"]
["=Controls!R9C74","Controls_HousingIncomeRentGridOpSubsCheckboxValue6","2021 RFP Workbook(1).xlsm","$BV$9"]
["=Controls!R9C75","Controls_HousingIncomeRentGridRentAsstCheckboxValue6","2021 RFP Workbook(1).xlsm","$BW$9"]
["=Controls!R9C76","Controls_HousingIncomeRentGridCommonSpace6","2021 RFP Workbook(1).xlsm","$BX$9"]

{"sheet":"Drop Down List Values","index":5,"n_rows":87,"n_cols":13,"rows_kept":87,"cut":false,"hidden":true,"merged":[]}
["Yes","Duplex","Attached Garage","No","MN Hsg Rent Assistance","State","Section 8 HAP Contract","New Construction","Electric","SRO no Kitchen","20% MTSP","20% MTSP","Aitkin"]
["No","Elevator","Detached Garage","Yes, at Imminent Risk of Loss Due to Conversion","MN Hsg Operating Subsidy","Local","Rural Development Rental Assistance","Rehabilitation","Natural Gas","SRO with Kitchen","30% MTSP","30% MTSP","Anoka"]
[null,"Single Family","Underground","Yes, at High Risk Due to Physical Needs","DHS HSASMI Operating Subsidy",null,"PBV Section 8",null,"Oil","0BR/Eff","40% MTSP","40% MTSP","Becker"]
[null,"Townhouse","Ramp","Yes, at High Risk Due to Change in Ownership","Housing Support (fka GRH)",null,"SRO-Mod Rehab PBA",null,"Propane","1BR","50% MTSP","50% MTSP","Beltrami"]
[null,"Walk-up",null,null,"Other",null,"COC Rental Assistance",null,"Steam","2BR","60% MTSP","60% MTSP","Benton"]
[null,"Combination",null,null,null,null,"Emergency Shelter Grant OS",null,null,"3BR","70% MTSP","70% MTSP","Big Stone"]
[null,null,null,null,null,null,"Public Housing reposition Section 18",null,null,"4BR","80% MTSP","80% MTSP","Blue Earth"]
[null,null,null,null,null,null,"Public Housing reposition RAD",null,null,"5BR","30/30 MM","100>S/AMI","Brown"]
[null,null,null,null,null,null,"Public Housing Voluntary Conversion",null,null,"6BR","ALW","30/30 MM","Carlton"]
[null,null,null,null,null,null,"Public Housing Streamlined RAD",null,null,null,"Common Space","80>S/AMI","Carver"]
[null,null,null,null,null,null,"Public Housing RAD Moderate Rehab SRO",null,null,null,"Market","None","Cass"]
[null,null,null,null,null,null,"RAD for PRAC/202",null,null,null,null,null,"Chippewa"]
[null,null,null,null,null,null,"Other",null,null,null,null,null,"Chisago"]
[null,null,null,null,null,null,null,null,null,null,null,null,"Clay"]
[null,null,null,null,null,null,null,null,null,null,null,null,"Clearwater"]
[null,null,null,null,null,null,null,null,null,null,null,null,"Cook"]
[null,null,null,null,null,null,null,null,null,null,null,null,"Cottonwood"]
[null,null,null,null,null,null,null,null,null,null,null,null,"Crow Wing"]
[null,null,null,null,null,null,null,null,null,null,null,null,"Dakota"]
[null,null,null,null,null,null,null,null,null,null,null,null,"Dodge"]
[null,null,null,null,null,null,null,null,null,null,null,null,"Douglas"]
[null,null,null,null,null,null,null,null,null,null,null,null,"Faribault"]
[null,null,null,null,null,null,null,null,null,null,null,null,"Fillmore"]
[null,null,null,null,null,null,null,null,null,null,null,null,"Freeborn"]
[null,null,null,null,null,null,null,null,null,null,null,null,"Goodhue"]
[null,null,null,null,null,null,null,null,null,null,null,null,"Grant"]
[null,null,null,null,null,null,null,null,null,null,null,null,"Hennepin"]
[null,null,null,null,null,null,null,null,null,null,null,null,"Houston"]
[null,null,null,null,null,null,null,null,null,null,null,null,"Hubbard"]
[null,null,null,null,null,null,null,null,null,null,null,null,"Isanti"]
[null,null,null,null,null,null,null,null,null,null,null,null,"Itasca"]
[null,null,null,null,null,null,null,null,null,null,null,null,"Jackson"]
[null,null,null,null,null,null,null,null,null,null,null,null,"Kanabec"]
[null,null,null,null,null,null,null,null,null,null,null,null,"Kandiyohi"]
[null,null,null,null,null,null,null,null,null,null,null,null,"Kittson"]
[null,null,null,null,null,null,null,null,null,null,null,null,"Koochiching"]
[null,null,null,null,null,null,null,null,null,null,null,null,"Lac Qui Parle"]
[null,null,null,null,null,null,null,null,null,null,null,null,"Lake"]
[null,null,null,null,null,null,null,null,null,null,null,null,"Lake of the Woods"]
[null,null,null,null,null,null,null,null,null,null,null,null,"Le Sueur"]
[null,null,null,null,null,null,null,null,null,null,null,null,"Lincoln"]
[null,null,null,null,null,null,null,null,null,null,null,null,"Lyon"]
[null,null,null,null,null,null,null,null,null,null,null,null,"Mahnomen"]
[null,null,null,null,null,null,null,null,null,null,null,null,"Marshall"]
[null,null,null,null,null,null,null,null,null,null,null,null,"Martin"]
[null,null,null,null,null,null,null,null,null,null,null,null,"McLeod"]
[null,null,null,null,null,null,null,null,null,null,null,null,"Meeker"]
[null,null,null,null,null,null,null,null,null,null,null,null,"Mille Lacs"]
[null,null,null,null,null,null,null,null,null,null,null,null,"Morrison"]
[null,null,null,null,null,null,null,null,null,null,null,null,"Mower"]
[null,null,null,null,null,null,null,null,null,null,null,null,"Murray"]
[null,null,null,null,null,null,null,null,null,null,null,null,"Nicollet"]
[null,null,null,null,null,null,null,null,null,null,null,null,"Nobles"]
[null,null,null,null,null,null,null,null,null,null,null,null,"Norman"]
[null,null,null,null,null,null,null,null,null,null,null,null,"Olmsted"]
[null,null,null,null,null,null,null,null,null,null,null,null,"Otter Tail"]
[null,null,null,null,null,null,null,null,null,null,null,null,"Pennington"]
[null,null,null,null,null,null,null,null,null,null,null,null,"Pine"]
[null,null,null,null,null,null,null,null,null,null,null,null,"Pipestone"]
[null,null,null,null,null,null,null,null,null,null,null,null,"Polk"]
[null,null,null,null,null,null,null,null,null,null,null,null,"Pope"]
[null,null,null,null,null,null,null,null,null,null,null,null,"Ramsey"]
[null,null,null,null,null,null,null,null,null,null,null,null,"Red Lake"]
[null,null,null,null,null,null,null,null,null,null,null,null,"Redwood"]
[null,null,null,null,null,null,null,null,null,null,null,null,"Renville"]
[null,null,null,null,null,null,null,null,null,null,null,null,"Rice"]
[null,null,null,null,null,null,null,null,null,null,null,null,"Rock"]
[null,null,null,null,null,null,null,null,null,null,null,null,"Roseau"]
[null,null,null,null,null,null,null,null,null,null,null,null,"Saint Louis"]
[null,null,null,null,null,null,null,null,null,null,null,null,"Scott"]
[null,null,null,null,null,null,null,null,null,null,null,null,"Sherburne"]
[null,null,null,null,null,null,null,null,null,null,null,null,"Sibley"]
[null,null,null,null,null,null,null,null,null,null,null,null,"Stearns"]
[null,null,null,null,null,null,null,null,null,null,null,null,"Steele"]
[null,null,null,null,null,null,null,null,null,null,null,null,"Stevens"]
[null,null,null,null,null,null,null,null,null,null,null,null,"Swift"]
[null,null,null,null,null,null,null,null,null,null,null,null,"Todd"]
[null,null,null,null,null,null,null,null,null,null,null,null,"Traverse"]
[null,null,null,null,null,null,null,null,null,null,null,null,"Wabasha"]
[null,null,null,null,null,null,null,null,null,null,null,null,"Wadena"]
[null,null,null,null,null,null,null,null,null,null,null,null,"Waseca"]
[null,null,null,null,null,null,null,null,null,null,null,null,"Washington"]
[null,null,null,null,null,null,null,null,null,null,null,null,"Watonwan"]
[null,null,null,null,null,null,null,null,null,null,null,null,"Wilkin"]
[null,null,null,null,null,null,null,null,null,null,null,null,"Winona"]
[null,null,null,null,null,null,null,null,null,null,null,null,"Wright"]
[null,null,null,null,null,null,null,null,null,null,null,null,"Yellow Medicine"]

{"sheet":"Extract Values","index":6,"n_rows":8,"n_cols":2,"rows_kept":8,"cut":false,"hidden":true,"merged":[]}
["Controls_PropertyInformationTribal",{"$f":"IF('Property Information'!B7 = \"Yes\", TRUE, FALSE)","v":false}]
["Controls_PropertyInformationLocatedQualifiedCensusTract",{"$f":"IF('Property Information'!B10 = \"Yes\", TRUE, FALSE)","v":false}]
["Controls_PropertyInformationDevelopmentAcquisitionWillBeAcquiredYesCheckboxValue",{"$f":"IF('Property Information'!C39=\"Yes\",TRUE, FALSE)","v":false}]
["Controls_PropertyInformationDevelopmentAcquisitionHasBeenAcquiredYesCheckboxValue",{"$f":"IF('Property Information'!C40=\"Yes\",TRUE, FALSE)","v":false}]
["Controls_PropertyInformationDevelopmentAcquisitionLast3YearsYesCheckboxValue",{"$f":"IF('Property Information'!C41=\"Yes\",TRUE, FALSE)","v":false}]
["Controls_PropertyInformationDevelopmentAcquisitionWillBeAcquiredNoCheckboxValue",{"$f":"IF('Property Information'!C39=\"No\",TRUE,FALSE)","v":false}]
["Controls_PropertyInformationDevelopmentAcquisitionHasBeenAcquiredNoCheckboxValue",{"$f":"IF('Property Information'!C40=\"No\",TRUE,FALSE)","v":false}]
["Controls_PropertyInformationDevelopmentAcquisitionLast3YearsNoCheckboxValue",{"$f":"IF('Property Information'!C41=\"No\",TRUE,FALSE)","v":false}]